{"text_format":"2","workbook":"xlsx","n_sheets":6,"sheets":["_Оглавление_ (для ТС)","_Оглавление_","Приложение № 2","Приложение №3","Приложение № 4","Приложение № 5"],"not_rendered":{"charts":0,"images":0,"macros":0,"external_links":9,"defined_names":754,"comments":0,"pivot_tables":0},"unopened":[],"bounds":{"document_bytes":16777216,"sheet_cells":100000,"run_cost":"one","rows_first":2000,"rows_last":500,"rows_between":2000,"halvings":0,"cell_chars":16384,"cell_head_chars":4096},"cells_cut":0,"cells_raw":0,"read":"whole","date_system":"1900"}

{"sheet":"_Оглавление_ (для ТС)","index":0,"n_rows":61,"n_cols":3,"rows_kept":61,"cut":false,"hidden":true,"merged":[]}
[null,"Перечень приложений к тарифному соглашению системы обязательного медицинского страхования Томской области на 2023 год\n"]
["Приложение № 1 (Word)","Приложение № 1","Положение о порядке оплаты медицинской помощи в сфере обязательного медицинского страхования на территории Томской области на 2023 год"]
["Приложение № 2 (Word)","Приложение № 2","Порядок осуществления выплат медицинским организациям, имеющим\nприкрепившихся лиц, в случае достижения целевых значений\nпоказателей результативности деятельности\n"]
["Приложение № 3",{"$f":"#REF!","v":{"$error":"#REF!"}},{"$f":"#REF!","v":{"$error":"#REF!"}}]
["Приложение № 4",{"$f":"#REF!","v":{"$error":"#REF!"}},{"$f":"#REF!","v":{"$error":"#REF!"}}]
["Приложение № 5",{"$f":"#REF!","v":{"$error":"#REF!"}},{"$f":"#REF!","v":{"$error":"#REF!"}}]
["Приложение № 6",{"$f":"#REF!","v":{"$error":"#REF!"}},{"$f":"#REF!","v":{"$error":"#REF!"}}]
[null,null,{"$f":"#REF!","v":{"$error":"#REF!"}}]
[null,null,{"$f":"#REF!","v":{"$error":"#REF!"}}]
["Приложение № 7",{"$f":"#REF!","v":{"$error":"#REF!"}},{"$f":"#REF!","v":{"$error":"#REF!"}}]
[null,null,{"$f":"#REF!","v":{"$error":"#REF!"}}]
[null,null,{"$f":"#REF!","v":{"$error":"#REF!"}}]
[null,null,{"$f":"#REF!","v":{"$error":"#REF!"}}]
[null,null,{"$f":"#REF!","v":{"$error":"#REF!"}}]
[null,null,{"$f":"#REF!","v":{"$error":"#REF!"}}]
["Приложение № 8",{"$f":"#REF!","v":{"$error":"#REF!"}},{"$f":"#REF!","v":{"$error":"#REF!"}}]
[null,null,{"$f":"#REF!","v":{"$error":"#REF!"}}]
[null,null,{"$f":"#REF!","v":{"$error":"#REF!"}}]
["Приложение № 9",{"$f":"#REF!","v":{"$error":"#REF!"}},{"$f":"#REF!","v":{"$error":"#REF!"}}]
["Приложение № 10",{"$f":"#REF!","v":{"$error":"#REF!"}},{"$f":"#REF!","v":{"$error":"#REF!"}}]
["Приложение № 11",{"$f":"#REF!","v":{"$error":"#REF!"}},{"$f":"#REF!","v":{"$error":"#REF!"}}]
[null,null,{"$f":"#REF!","v":{"$error":"#REF!"}}]
[null,null,{"$f":"#REF!","v":{"$error":"#REF!"}}]
[null,null,{"$f":"#REF!","v":{"$error":"#REF!"}}]
[null,null,{"$f":"#REF!","v":{"$error":"#REF!"}}]
[null,null,{"$f":"#REF!","v":{"$error":"#REF!"}}]
[null,null,{"$f":"#REF!","v":{"$error":"#REF!"}}]
[null,null,{"$f":"#REF!","v":{"$error":"#REF!"}}]
["Приложение № 12",{"$f":"#REF!","v":{"$error":"#REF!"}},{"$f":"#REF!","v":{"$error":"#REF!"}}]
["Приложение № 13",{"$f":"#REF!","v":{"$error":"#REF!"}},{"$f":"#REF!","v":{"$error":"#REF!"}}]
["Приложение № 14",{"$f":"#REF!","v":{"$error":"#REF!"}},{"$f":"#REF!","v":{"$error":"#REF!"}}]
["Приложение № 15",{"$f":"#REF!","v":{"$error":"#REF!"}},{"$f":"#REF!","v":{"$error":"#REF!"}}]
["Приложение № 16",{"$f":"#REF!","v":{"$error":"#REF!"}},{"$f":"#REF!","v":{"$error":"#REF!"}}]
[null,null,{"$f":"#REF!","v":{"$error":"#REF!"}}]
[null,null,{"$f":"#REF!","v":{"$error":"#REF!"}}]
["Приложение № 17",{"$f":"#REF!","v":{"$error":"#REF!"}},{"$f":"#REF!","v":{"$error":"#REF!"}}]
["Приложение № 18",{"$f":"#REF!","v":{"$error":"#REF!"}},{"$f":"#REF!","v":{"$error":"#REF!"}}]
[null,null,{"$f":"#REF!","v":{"$error":"#REF!"}}]
[null,null,{"$f":"#REF!","v":{"$error":"#REF!"}}]
[null,null,{"$f":"#REF!","v":{"$error":"#REF!"}}]
["Приложение № 19",{"$f":"#REF!","v":{"$error":"#REF!"}},{"$f":"#REF!","v":{"$error":"#REF!"}}]
["Приложение № 20",{"$f":"#REF!","v":{"$error":"#REF!"}},{"$f":"#REF!","v":{"$error":"#REF!"}}]
["Приложение № 21",{"$f":"#REF!","v":{"$error":"#REF!"}},{"$f":"#REF!","v":{"$error":"#REF!"}}]
["Приложение № 22",{"$f":"#REF!","v":{"$error":"#REF!"}},{"$f":"#REF!","v":{"$error":"#REF!"}}]
["Приложение № 23",{"$f":"#REF!","v":{"$error":"#REF!"}},{"$f":"#REF!","v":{"$error":"#REF!"}}]
["Приложение № 24",{"$f":"#REF!","v":{"$error":"#REF!"}},{"$f":"#REF!","v":{"$error":"#REF!"}}]
["Приложение № 25",{"$f":"#REF!","v":{"$error":"#REF!"}},{"$f":"#REF!","v":{"$error":"#REF!"}}]
["Приложение № 26",{"$f":"#REF!","v":{"$error":"#REF!"}},{"$f":"#REF!","v":{"$error":"#REF!"}}]
["Приложение № 27",{"$f":"#REF!","v":{"$error":"#REF!"}},{"$f":"#REF!","v":{"$error":"#REF!"}}]
["Приложение № 28",{"$f":"#REF!","v":{"$error":"#REF!"}},{"$f":"#REF!","v":{"$error":"#REF!"}}]
["Приложение № 29",{"$f":"'Приложение №3'!$B$10","v":"Приложение № 31"},{"$f":"'Приложение №3'!$B$16","v":"Коэффициенты сложности лечения пациента для оплаты медицинской помощи, оказанной в стационарных условиях и в условиях дневного стационара, по КСГ, в том числе лицам, застрахованным за пределами Томской области"}]
["Приложение № 30",{"$f":"#REF!","v":{"$error":"#REF!"}},{"$f":"#REF!","v":{"$error":"#REF!"}}]
["Приложение № 31",{"$f":"#REF!","v":{"$error":"#REF!"}},{"$f":"#REF!","v":{"$error":"#REF!"}}]
["Приложение № 32",{"$f":"#REF!","v":{"$error":"#REF!"}},{"$f":"#REF!","v":{"$error":"#REF!"}}]
["Приложение № 33",{"$f":"#REF!","v":{"$error":"#REF!"}},{"$f":"#REF!","v":{"$error":"#REF!"}}]
["Приложение № 34",{"$f":"#REF!","v":{"$error":"#REF!"}},{"$f":"#REF!","v":{"$error":"#REF!"}}]
["Приложение № 35",{"$f":"#REF!","v":{"$error":"#REF!"}},{"$f":"#REF!","v":{"$error":"#REF!"}}]
["Приложение № 36",{"$f":"#REF!","v":{"$error":"#REF!"}},{"$f":"#REF!","v":{"$error":"#REF!"}}]
["Приложение № 37",{"$f":"#REF!","v":{"$error":"#REF!"}},{"$f":"#REF!","v":{"$error":"#REF!"}}]
["Приложение № 38",{"$f":"#REF!","v":{"$error":"#REF!"}},{"$f":"#REF!","v":{"$error":"#REF!"}}]
["Приложение № 39 (Word)","Приложение № 40","Перечень оснований для отказа в оплате медицинской помощи (уменьшения\nоплаты медицинской помощи), размеров и условий применения\nфинансовых санкций по результатам контроля объемов, сроков,\nкачества и условий предоставления медицинской помощи\nпо обязательному медицинскому страхованию на территории\nтомской области\n"]

{"sheet":"_Оглавление_","index":1,"n_rows":7,"n_cols":3,"rows_kept":7,"cut":false,"hidden":false,"merged":[]}
[null,"Перечень приложений к тарифному соглашению системы обязательного медицинского страхования Томской области на 2024 год\n"]
["Доп.соглашение № 5","Тарифное соглашение "]
["от 31.05.2024","от 05.02.2024"]
["Приложение № 2","Приложение № 5",{"$f":"'Приложение № 2'!B16","v":"Тарифы на оплату медицинской помощи в амбулаторных условиях, по подушевому нормативу финансирования, оказываемой медицинскими организациями, участвующими в реализации территориальной программы обязательного медицинского страхования Томской области, с учетом показателей результативности деятельности медицинской организации (включая показатели объема медицинской помощи)"}]
["Приложение №3","Приложение № 31",{"$f":"'Приложение №3'!B16","v":"Коэффициенты сложности лечения пациента для оплаты медицинской помощи, оказанной в стационарных условиях и в условиях дневного стационара, по КСГ, в том числе лицам, застрахованным за пределами Томской области"}]
["Приложение № 4","Приложение № 40",{"$f":"'Приложение № 4'!B16","v":"Тарифы на оплату медицинской помощи по подушевому нормативу финансирования на прикрепившихся к медицинской организации лиц, включая оплату по всем видам и условиям предоставляемой медицинской помощи, с учетом показателей результативности деятельности медицинской организации (включая показатели объема медицинской помощи)"}]
["Приложение № 5","Приложение № 41",{"$f":"'Приложение № 5'!B16","v":"Тарифы на оплату первого и второго этапа диспансеризации ветеранов боевых действий - участников специальной военной операции, с 01.05.2024 "}]

{"sheet":"Приложение № 2","index":2,"n_rows":49,"n_cols":13,"rows_kept":49,"cut":false,"hidden":false,"merged":[[15,1,15,12],[17,1,17,12]]}
[]
[null,{"$f":"MID(CELL(\"filename\",A2),SEARCH(\"]\",CELL(\"filename\",A2))+1,31)","v":"Приложение № 2"}]
[null,"к Дополнительному соглашению № 5"]
[null,"от 31.05.2024"]
[null,"к Тарифному соглашению"]
[null,"на оплату медицинской помощи "]
[null,"по ОМС на территории Томской области на 2024 год "]
[null,"от 05.02.2024"]
[]
[null,"Приложение № 5"]
[null,"к  Тарифному соглашению"]
[null,"на оплату медицинской помощи"]
[null,"по ОМС на территории Томской области на 2024 год"]
[null,"от 05.02.2024"]
[]
[null,"Тарифы на оплату медицинской помощи в амбулаторных условиях, по подушевому нормативу финансирования, оказываемой медицинскими организациями, участвующими в реализации территориальной программы обязательного медицинского страхования Томской области, с учетом показателей результативности деятельности медицинской организации (включая показатели объема медицинской помощи)"]
[]
[null,"Тарифы на оплату медицинской помощи в амбулаторных условиях, по подушевому нормативу финансирования, оказываемой медицинскими организациями, участвующими в реализации территориальной программы обязательного медицинского страхования Томской области, с учетом показателей результативности деятельности медицинской организации (включая показатели объема медицинской помощи), с 01.06.2024\n"]
[]
[null,"Код МО","Наименование МО"," Среднемесячное количество застрахованных лиц, прикрепленных к медицинской организации, на 01.05.2024","Базовый подушевой норматив  на одно застрахованное прикрепившееся лицо (руб. в месяц)  ","Коэффициент половозрастного состава ","Коэффициент  уровня расходов медицинских организаций","Коэффициент достижения целевых показателей уровня заработной платы медиицнских работников, предусмотренного \"Дорожными картами\" развития здравоохранения в ТО","Коэффициент дифференциации на прикрепившихся к медицинской организации лиц с учетом  наличия подразделений, расположенных  в сельской местности, отдаленных территориях, поселках городского типа и малых городах с численностью населения до 50 тысяч человек и расходов на их содержание и на оплату труда персонала","Диапазон численности прикрепленного населения к медицинским организациям, расположенных в сельской местности, отдаленных территориях, поселках городского типа и малых городах с численностью населения до 50 тысяч человек","Коэффициент дифференциации по территориям оказания медицинской организации","Месячный дифференцированный подушевой норматив финансирования МО на одно застрахованное прикрепившееся лицо, руб. в месяц ","Месячный дифференцированный подушевой норматив финансирования поликлиники на одно застрахованное прикрепившееся лицо  на выплаты за достижение целевых значений показателей результативности деятельности, руб. в месяц            "]
[null,59,"ОГБУЗ \"Асиновская РБ\"",{"$f":"VLOOKUP($B21,'[9]Неполный_уменьш. база (2)'!$A$5:$X$43,3,0)","v":31706},189.57,{"$f":"VLOOKUP($B21,'[9]Неполный_уменьш. база (2)'!$A$5:$X$43,21,0)","v":1.0868910678791925},1,{"$f":"VLOOKUP($B21,'[9]Неполный_уменьш. база (2)'!$A$5:$X$43,22,0)","v":1.1280600000000001},{"$f":"VLOOKUP($B21,'[9]Неполный_уменьш. база (2)'!$A$5:$X$43,8,0)","v":1.04},"свыше 20,0 тыс. человек",{"$f":"VLOOKUP($B21,'[9]Неполный_уменьш. база (2)'!$A$5:$X$43,9,0)","v":1.27},{"$f":"ROUND(E21*F21*G21*H21*I21*K21,2)","v":306.99},{"$f":"ROUND(L21*1/99,2)","v":3.1}]
[null,67,"ОГБУЗ \"Зырянская РБ\"",{"$f":"VLOOKUP($B22,'[9]Неполный_уменьш. база (2)'!$A$5:$X$43,3,0)","v":11209},189.57,{"$f":"VLOOKUP($B22,'[9]Неполный_уменьш. база (2)'!$A$5:$X$43,21,0)","v":1.081034647437433},1,{"$f":"VLOOKUP($B22,'[9]Неполный_уменьш. база (2)'!$A$5:$X$43,22,0)","v":1.2214700000000001},{"$f":"VLOOKUP($B22,'[9]Неполный_уменьш. база (2)'!$A$5:$X$43,8,0)","v":1.113},"до 20,0 тыс. человек",{"$f":"VLOOKUP($B22,'[9]Неполный_уменьш. база (2)'!$A$5:$X$43,9,0)","v":1.26},{"$f":"ROUND(E22*F22*G22*H22*I22*K22,2)","v":351.04},{"$f":"ROUND(L22*1/99,2)","v":3.55}]
[null,71,"ОГАУЗ \"Кожевниковская РБ\"",{"$f":"VLOOKUP($B23,'[9]Неполный_уменьш. база (2)'!$A$5:$X$43,3,0)","v":16734},189.57,{"$f":"VLOOKUP($B23,'[9]Неполный_уменьш. база (2)'!$A$5:$X$43,21,0)","v":1.10730232779288},1,{"$f":"VLOOKUP($B23,'[9]Неполный_уменьш. база (2)'!$A$5:$X$43,22,0)","v":1},{"$f":"VLOOKUP($B23,'[9]Неполный_уменьш. база (2)'!$A$5:$X$43,8,0)","v":1.113},"до 20,0 тыс. человек",{"$f":"VLOOKUP($B23,'[9]Неполный_уменьш. база (2)'!$A$5:$X$43,9,0)","v":1.272},297.18,3]
[null,103,"ОГАУЗ \"Колпашевская РБ\"",{"$f":"VLOOKUP($B24,'[9]Неполный_уменьш. база (2)'!$A$5:$X$43,3,0)","v":34895},189.57,{"$f":"VLOOKUP($B24,'[9]Неполный_уменьш. база (2)'!$A$5:$X$43,21,0)","v":1.1014056051598378},1,{"$f":"VLOOKUP($B24,'[9]Неполный_уменьш. база (2)'!$A$5:$X$43,22,0)","v":1.24875},{"$f":"VLOOKUP($B24,'[9]Неполный_уменьш. база (2)'!$A$5:$X$43,8,0)","v":1.04},"свыше 20,0 тыс. человек",{"$f":"VLOOKUP($B24,'[9]Неполный_уменьш. база (2)'!$A$5:$X$43,9,0)","v":1.7929999999999999},486.19,4.91]
[null,73,"ОГАУЗ \"Кривошеинская РБ\"",{"$f":"VLOOKUP($B25,'[9]Неполный_уменьш. база (2)'!$A$5:$X$43,3,0)","v":10677},189.57,{"$f":"VLOOKUP($B25,'[9]Неполный_уменьш. база (2)'!$A$5:$X$43,21,0)","v":1.0869253758569688},1,{"$f":"VLOOKUP($B25,'[9]Неполный_уменьш. база (2)'!$A$5:$X$43,22,0)","v":1.0310299999999999},{"$f":"VLOOKUP($B25,'[9]Неполный_уменьш. база (2)'!$A$5:$X$43,8,0)","v":1.113},"до 20,0 тыс. человек",{"$f":"VLOOKUP($B25,'[9]Неполный_уменьш. база (2)'!$A$5:$X$43,9,0)","v":1.63},385.41,3.89]
[null,275,"ОГАУЗ \"Моряковская УБ им.В.С.Демьянова\"",{"$f":"VLOOKUP($B26,'[9]Неполный_уменьш. база (2)'!$A$5:$X$43,3,0)","v":4453},189.57,{"$f":"VLOOKUP($B26,'[9]Неполный_уменьш. база (2)'!$A$5:$X$43,21,0)","v":1.1583697844878464},1,{"$f":"VLOOKUP($B26,'[9]Неполный_уменьш. база (2)'!$A$5:$X$43,22,0)","v":1.70957},{"$f":"VLOOKUP($B26,'[9]Неполный_уменьш. база (2)'!$A$5:$X$43,8,0)","v":1.113},"до 20,0 тыс. человек",{"$f":"VLOOKUP($B26,'[9]Неполный_уменьш. база (2)'!$A$5:$X$43,9,0)","v":1.2709999999999999},531.05999999999995,5.36]
[null,203,"ОГБУЗ \"Парабельская РБ\"",{"$f":"VLOOKUP($B27,'[9]Неполный_уменьш. база (2)'!$A$5:$X$43,3,0)","v":11896},189.57,{"$f":"VLOOKUP($B27,'[9]Неполный_уменьш. база (2)'!$A$5:$X$43,21,0)","v":1.0921884536813327},1,{"$f":"VLOOKUP($B27,'[9]Неполный_уменьш. база (2)'!$A$5:$X$43,22,0)","v":1.40774},{"$f":"VLOOKUP($B27,'[9]Неполный_уменьш. база (2)'!$A$5:$X$43,8,0)","v":1.113},"до 20,0 тыс. человек",{"$f":"VLOOKUP($B27,'[9]Неполный_уменьш. база (2)'!$A$5:$X$43,9,0)","v":1.794},581.98,5.88]
[null,79,"ОГБУЗ \"Первомайская РБ\"",{"$f":"VLOOKUP($B28,'[9]Неполный_уменьш. база (2)'!$A$5:$X$43,3,0)","v":15234},189.57,{"$f":"VLOOKUP($B28,'[9]Неполный_уменьш. база (2)'!$A$5:$X$43,21,0)","v":1.0872973712368976},1,{"$f":"VLOOKUP($B28,'[9]Неполный_уменьш. база (2)'!$A$5:$X$43,22,0)","v":1.2161299999999999},{"$f":"VLOOKUP($B28,'[9]Неполный_уменьш. база (2)'!$A$5:$X$43,8,0)","v":1.113},"до 20,0 тыс. человек",{"$f":"VLOOKUP($B28,'[9]Неполный_уменьш. база (2)'!$A$5:$X$43,9,0)","v":1.272},354.88,3.58]
[null,83,"ОГАУЗ \"Томская РБ\"",{"$f":"VLOOKUP($B29,'[9]Неполный_уменьш. база (2)'!$A$5:$X$43,3,0)","v":31120},189.57,{"$f":"VLOOKUP($B29,'[9]Неполный_уменьш. база (2)'!$A$5:$X$43,21,0)","v":1.0844951700537964},1,{"$f":"VLOOKUP($B29,'[9]Неполный_уменьш. база (2)'!$A$5:$X$43,22,0)","v":1},{"$f":"VLOOKUP($B29,'[9]Неполный_уменьш. база (2)'!$A$5:$X$43,8,0)","v":1.04},"свыше 20,0 тыс. человек",{"$f":"VLOOKUP($B29,'[9]Неполный_уменьш. база (2)'!$A$5:$X$43,9,0)","v":1.2709999999999999},271.75,2.74]
[null,85,"ОГБУЗ \"Чаинская РБ\"",{"$f":"VLOOKUP($B30,'[9]Неполный_уменьш. база (2)'!$A$5:$X$43,3,0)","v":8641},189.57,{"$f":"VLOOKUP($B30,'[9]Неполный_уменьш. база (2)'!$A$5:$X$43,21,0)","v":1.0878706514310528},1,{"$f":"VLOOKUP($B30,'[9]Неполный_уменьш. база (2)'!$A$5:$X$43,22,0)","v":1.2370399999999999},{"$f":"VLOOKUP($B30,'[9]Неполный_уменьш. база (2)'!$A$5:$X$43,8,0)","v":1.113},"до 20,0 тыс. человек",{"$f":"VLOOKUP($B30,'[9]Неполный_уменьш. база (2)'!$A$5:$X$43,9,0)","v":1.7769999999999999},504.56,5.0999999999999996]
[null,87,"ОГАУЗ \"Шегарская РБ\"",{"$f":"VLOOKUP($B31,'[9]Неполный_уменьш. база (2)'!$A$5:$X$43,3,0)","v":16349},189.57,{"$f":"VLOOKUP($B31,'[9]Неполный_уменьш. база (2)'!$A$5:$X$43,21,0)","v":1.0908096092520037},1,{"$f":"VLOOKUP($B31,'[9]Неполный_уменьш. база (2)'!$A$5:$X$43,22,0)","v":1.1887099999999999},{"$f":"VLOOKUP($B31,'[9]Неполный_уменьш. база (2)'!$A$5:$X$43,8,0)","v":1.113},"до 20,0 тыс. человек",{"$f":"VLOOKUP($B31,'[9]Неполный_уменьш. база (2)'!$A$5:$X$43,9,0)","v":1.242},339.79,3.43]
[null,29,"ОГАУЗ \"Больница № 2\"",{"$f":"VLOOKUP($B32,'[9]Неполный_уменьш. база (2)'!$A$5:$X$43,3,0)","v":35602},189.57,{"$f":"VLOOKUP($B32,'[9]Неполный_уменьш. база (2)'!$A$5:$X$43,21,0)","v":0.89442400786966003},1,{"$f":"VLOOKUP($B32,'[9]Неполный_уменьш. база (2)'!$A$5:$X$43,22,0)","v":0.55662999999999996},{"$f":"VLOOKUP($B32,'[9]Неполный_уменьш. база (2)'!$A$5:$X$43,8,0)","v":1},null,{"$f":"VLOOKUP($B32,'[9]Неполный_уменьш. база (2)'!$A$5:$X$43,9,0)","v":1.274},120.24,1.21]
[null,33,"ОГАУЗ \"ГКБ № 3 им. Б.И. Альперовича\"",{"$f":"VLOOKUP($B33,'[9]Неполный_уменьш. база (2)'!$A$5:$X$43,3,0)","v":76392},189.57,{"$f":"VLOOKUP($B33,'[9]Неполный_уменьш. база (2)'!$A$5:$X$43,21,0)","v":0.86760761119689933},1,{"$f":"VLOOKUP($B33,'[9]Неполный_уменьш. база (2)'!$A$5:$X$43,22,0)","v":0.96311999999999998},{"$f":"VLOOKUP($B33,'[9]Неполный_уменьш. база (2)'!$A$5:$X$43,8,0)","v":1},null,{"$f":"VLOOKUP($B33,'[9]Неполный_уменьш. база (2)'!$A$5:$X$43,9,0)","v":1.274},201.81,2.04]
[null,140,"ОГБУЗ \"Медико-санитарная часть № 2\"",{"$f":"VLOOKUP($B34,'[9]Неполный_уменьш. база (2)'!$A$5:$X$43,3,0)","v":79435},189.57,{"$f":"VLOOKUP($B34,'[9]Неполный_уменьш. база (2)'!$A$5:$X$43,21,0)","v":1.1238217857577208},1,{"$f":"VLOOKUP($B34,'[9]Неполный_уменьш. база (2)'!$A$5:$X$43,22,0)","v":0.65858000000000005},{"$f":"VLOOKUP($B34,'[9]Неполный_уменьш. база (2)'!$A$5:$X$43,8,0)","v":1},null,{"$f":"VLOOKUP($B34,'[9]Неполный_уменьш. база (2)'!$A$5:$X$43,9,0)","v":1.274},178.75,1.81]
[null,49,"ОГАУЗ \"МСЧ \"Строитель\"",{"$f":"VLOOKUP($B35,'[9]Неполный_уменьш. база (2)'!$A$5:$X$43,3,0)","v":27896},189.57,{"$f":"VLOOKUP($B35,'[9]Неполный_уменьш. база (2)'!$A$5:$X$43,21,0)","v":0.86062903331644525},1,{"$f":"VLOOKUP($B35,'[9]Неполный_уменьш. база (2)'!$A$5:$X$43,22,0)","v":0.44402000000000003},{"$f":"VLOOKUP($B35,'[9]Неполный_уменьш. база (2)'!$A$5:$X$43,8,0)","v":1},null,{"$f":"VLOOKUP($B35,'[9]Неполный_уменьш. база (2)'!$A$5:$X$43,9,0)","v":1.274},92.29,0.93]
[null,133,"ОГАУЗ \"Детская больница № 1\"",{"$f":"VLOOKUP($B36,'[9]Неполный_уменьш. база (2)'!$A$5:$X$43,3,0)","v":21713},189.57,{"$f":"VLOOKUP($B36,'[9]Неполный_уменьш. база (2)'!$A$5:$X$43,21,0)","v":1.9117070550880393},1,{"$f":"VLOOKUP($B36,'[9]Неполный_уменьш. база (2)'!$A$5:$X$43,22,0)","v":1.02105},{"$f":"VLOOKUP($B36,'[9]Неполный_уменьш. база (2)'!$A$5:$X$43,8,0)","v":1},null,{"$f":"VLOOKUP($B36,'[9]Неполный_уменьш. база (2)'!$A$5:$X$43,9,0)","v":1.274},471.42,4.76]
[null,135,"ОГАУЗ \"Детская городская больница № 2\"",{"$f":"VLOOKUP($B37,'[9]Неполный_уменьш. база (2)'!$A$5:$X$43,3,0)","v":57877},189.57,{"$f":"VLOOKUP($B37,'[9]Неполный_уменьш. база (2)'!$A$5:$X$43,21,0)","v":1.9105746078186967},1,{"$f":"VLOOKUP($B37,'[9]Неполный_уменьш. база (2)'!$A$5:$X$43,22,0)","v":0.97085999999999995},{"$f":"VLOOKUP($B37,'[9]Неполный_уменьш. база (2)'!$A$5:$X$43,8,0)","v":1},null,{"$f":"VLOOKUP($B37,'[9]Неполный_уменьш. база (2)'!$A$5:$X$43,9,0)","v":1.274},447.98,4.53]
[null,232,"ОГБУЗ \"Лоскутовская РП\"",{"$f":"VLOOKUP($B38,'[9]Неполный_уменьш. база (2)'!$A$5:$X$43,3,0)","v":26630},189.57,{"$f":"VLOOKUP($B38,'[9]Неполный_уменьш. база (2)'!$A$5:$X$43,21,0)","v":1.1855633442578883},1,{"$f":"VLOOKUP($B38,'[9]Неполный_уменьш. база (2)'!$A$5:$X$43,22,0)","v":1},{"$f":"VLOOKUP($B38,'[9]Неполный_уменьш. база (2)'!$A$5:$X$43,8,0)","v":1.04},"свыше 20,0 тыс. человек",{"$f":"VLOOKUP($B38,'[9]Неполный_уменьш. база (2)'!$A$5:$X$43,9,0)","v":1.2709999999999999},297.08,3]
[null,231,"ОГАУЗ \"Светленская РБ\"",{"$f":"VLOOKUP($B39,'[9]Неполный_уменьш. база (2)'!$A$5:$X$43,3,0)","v":31736},189.57,{"$f":"VLOOKUP($B39,'[9]Неполный_уменьш. база (2)'!$A$5:$X$43,21,0)","v":1.1021925748925574},1,{"$f":"VLOOKUP($B39,'[9]Неполный_уменьш. база (2)'!$A$5:$X$43,22,0)","v":1.2655799999999999},{"$f":"VLOOKUP($B39,'[9]Неполный_уменьш. база (2)'!$A$5:$X$43,8,0)","v":1.04},"свыше 20,0 тыс. человек",{"$f":"VLOOKUP($B39,'[9]Неполный_уменьш. база (2)'!$A$5:$X$43,9,0)","v":1.2709999999999999},349.54,3.53]
[null,35,"ОГАУЗ \"Межвузовская поликлиника\"",{"$f":"VLOOKUP($B40,'[9]Неполный_уменьш. база (2)'!$A$5:$X$43,3,0)","v":45996},189.57,{"$f":"VLOOKUP($B40,'[9]Неполный_уменьш. база (2)'!$A$5:$X$43,21,0)","v":0.68798284326492309},1,{"$f":"VLOOKUP($B40,'[9]Неполный_уменьш. база (2)'!$A$5:$X$43,22,0)","v":0.70157000000000003},{"$f":"VLOOKUP($B40,'[9]Неполный_уменьш. база (2)'!$A$5:$X$43,8,0)","v":1},null,{"$f":"VLOOKUP($B40,'[9]Неполный_уменьш. база (2)'!$A$5:$X$43,9,0)","v":1.274},116.57,1.18]
[null,4,"ОГАУЗ \"Поликлиника № 4\"",{"$f":"VLOOKUP($B41,'[9]Неполный_уменьш. база (2)'!$A$5:$X$43,3,0)","v":55112},189.57,{"$f":"VLOOKUP($B41,'[9]Неполный_уменьш. база (2)'!$A$5:$X$43,21,0)","v":0.83043566865104679},1,{"$f":"VLOOKUP($B41,'[9]Неполный_уменьш. база (2)'!$A$5:$X$43,22,0)","v":0.72387000000000001},{"$f":"VLOOKUP($B41,'[9]Неполный_уменьш. база (2)'!$A$5:$X$43,8,0)","v":1},null,{"$f":"VLOOKUP($B41,'[9]Неполный_уменьш. база (2)'!$A$5:$X$43,9,0)","v":1.274},145.18,1.47]
[null,10,"ОГАУЗ \"Поликлиника № 10\"",{"$f":"VLOOKUP($B42,'[9]Неполный_уменьш. база (2)'!$A$5:$X$43,3,0)","v":91401},189.57,{"$f":"VLOOKUP($B42,'[9]Неполный_уменьш. база (2)'!$A$5:$X$43,21,0)","v":0.83751862631529206},1,{"$f":"VLOOKUP($B42,'[9]Неполный_уменьш. база (2)'!$A$5:$X$43,22,0)","v":0.60655999999999999},{"$f":"VLOOKUP($B42,'[9]Неполный_уменьш. база (2)'!$A$5:$X$43,8,0)","v":1},null,{"$f":"VLOOKUP($B42,'[9]Неполный_уменьш. база (2)'!$A$5:$X$43,9,0)","v":1.274},122.69,1.24]
[null,13,"ОГБУЗ \"Поликлиника ТНЦ СО РАН\"",{"$f":"VLOOKUP($B43,'[9]Неполный_уменьш. база (2)'!$A$5:$X$43,3,0)","v":23606},189.57,{"$f":"VLOOKUP($B43,'[9]Неполный_уменьш. база (2)'!$A$5:$X$43,21,0)","v":1.2131756515013932},1,{"$f":"VLOOKUP($B43,'[9]Неполный_уменьш. база (2)'!$A$5:$X$43,22,0)","v":0.65646000000000004},{"$f":"VLOOKUP($B43,'[9]Неполный_уменьш. база (2)'!$A$5:$X$43,8,0)","v":1},null,{"$f":"VLOOKUP($B43,'[9]Неполный_уменьш. база (2)'!$A$5:$X$43,9,0)","v":1.274},192.34,1.94]
[null,354,"ФГБУ СибФНКЦ ФМБА России",{"$f":"VLOOKUP($B44,'[9]Неполный_уменьш. база (2)'!$A$5:$X$43,3,0)","v":104548},189.57,{"$f":"VLOOKUP($B44,'[9]Неполный_уменьш. база (2)'!$A$5:$X$43,21,0)","v":1.065929518169721},1,{"$f":"VLOOKUP($B44,'[9]Неполный_уменьш. база (2)'!$A$5:$X$43,22,0)","v":1},{"$f":"VLOOKUP($B44,'[9]Неполный_уменьш. база (2)'!$A$5:$X$43,8,0)","v":1},null,{"$f":"VLOOKUP($B44,'[9]Неполный_уменьш. база (2)'!$A$5:$X$43,9,0)","v":1.381},279.06,2.82]
[null,173,"ФГБОУ ВО СибГМУ Минздрава России",{"$f":"VLOOKUP($B45,'[9]Неполный_уменьш. база (2)'!$A$5:$X$43,3,0)","v":857},189.57,{"$f":"VLOOKUP($B45,'[9]Неполный_уменьш. база (2)'!$A$5:$X$43,21,0)","v":0.75182411396308135},1,{"$f":"VLOOKUP($B45,'[9]Неполный_уменьш. база (2)'!$A$5:$X$43,22,0)","v":1.2591000000000001},{"$f":"VLOOKUP($B45,'[9]Неполный_уменьш. база (2)'!$A$5:$X$43,8,0)","v":1},null,{"$f":"VLOOKUP($B45,'[9]Неполный_уменьш. база (2)'!$A$5:$X$43,9,0)","v":1.274},228.62,2.31]
[null,151,"ФКУЗ \"МСЧ МВД России по Томской области\"",{"$f":"VLOOKUP($B46,'[9]Неполный_уменьш. база (2)'!$A$5:$X$43,3,0)","v":4705},189.57,{"$f":"VLOOKUP($B46,'[9]Неполный_уменьш. база (2)'!$A$5:$X$43,21,0)","v":0.81857961731171514},1,{"$f":"VLOOKUP($B46,'[9]Неполный_уменьш. база (2)'!$A$5:$X$43,22,0)","v":1.15642},{"$f":"VLOOKUP($B46,'[9]Неполный_уменьш. база (2)'!$A$5:$X$43,8,0)","v":1},null,{"$f":"VLOOKUP($B46,'[9]Неполный_уменьш. база (2)'!$A$5:$X$43,9,0)","v":1.274},228.62,2.31]
[null,205,"ООО \"ЦСМ\"",{"$f":"VLOOKUP($B47,'[9]Неполный_уменьш. база (2)'!$A$5:$X$43,3,0)","v":21769},189.57,{"$f":"VLOOKUP($B47,'[9]Неполный_уменьш. база (2)'!$A$5:$X$43,21,0)","v":0.83321287953116174},1,{"$f":"VLOOKUP($B47,'[9]Неполный_уменьш. база (2)'!$A$5:$X$43,22,0)","v":0.74412},{"$f":"VLOOKUP($B47,'[9]Неполный_уменьш. база (2)'!$A$5:$X$43,8,0)","v":1},null,{"$f":"VLOOKUP($B47,'[9]Неполный_уменьш. база (2)'!$A$5:$X$43,9,0)","v":1.274},149.74,1.51]
[null,294,"ООО \"СибМедЦентр\"",{"$f":"VLOOKUP($B48,'[9]Неполный_уменьш. база (2)'!$A$5:$X$43,3,0)","v":657},189.57,{"$f":"VLOOKUP($B48,'[9]Неполный_уменьш. база (2)'!$A$5:$X$43,21,0)","v":0.76637119113365648},1,{"$f":"VLOOKUP($B48,'[9]Неполный_уменьш. база (2)'!$A$5:$X$43,22,0)","v":1.06599},{"$f":"VLOOKUP($B48,'[9]Неполный_уменьш. база (2)'!$A$5:$X$43,8,0)","v":1.113},"до 20,0 тыс. человек",{"$f":"VLOOKUP($B48,'[9]Неполный_уменьш. база (2)'!$A$5:$X$43,9,0)","v":1.7649999999999999},304.23,3.07]
[null,355,"ООО \"ЦКБ\"",{"$f":"VLOOKUP($B49,'[9]Неполный_уменьш. база (2)'!$A$5:$X$43,3,0)","v":10},189.57,{"$f":"VLOOKUP($B49,'[9]Неполный_уменьш. база (2)'!$A$5:$X$43,21,0)","v":0.63492682476522078},1,{"$f":"VLOOKUP($B49,'[9]Неполный_уменьш. база (2)'!$A$5:$X$43,22,0)","v":0.97650999999999999},{"$f":"VLOOKUP($B49,'[9]Неполный_уменьш. база (2)'!$A$5:$X$43,8,0)","v":1},null,{"$f":"VLOOKUP($B49,'[9]Неполный_уменьш. база (2)'!$A$5:$X$43,9,0)","v":1.274},149.74,1.51]

{"sheet":"Приложение №3","index":3,"n_rows":259,"n_cols":6,"rows_kept":259,"cut":false,"hidden":false,"merged":[[21,2,21,4],[22,2,22,4],[23,2,23,4],[24,2,24,3],[24,4,24,5],[17,2,17,4],[18,2,18,4],[19,2,19,4],[20,2,20,4],[144,2,144,4],[145,2,145,3],[145,4,145,5],[167,2,167,4],[168,3,168,5],[49,2,49,4],[50,2,50,3],[50,4,50,5],[135,2,135,4],[136,2,136,3],[136,4,136,5],[174,3,174,5],[175,3,175,5],[176,3,176,5],[177,3,177,5],[178,3,178,5],[169,3,169,5],[170,3,170,5],[171,3,171,5],[172,3,172,5],[173,3,173,5],[184,2,184,4],[185,3,185,5],[186,3,186,5],[187,3,187,5],[188,3,188,5],[179,3,179,5],[180,3,180,5],[181,3,181,5],[182,3,182,5],[183,3,183,5],[194,2,194,4],[195,3,195,5],[196,3,196,5],[197,3,197,5],[198,2,198,4],[189,3,189,5],[190,3,190,5],[191,3,191,5],[192,3,192,5],[193,3,193,5],[204,3,204,5],[205,3,205,5],[206,3,206,5],[207,3,207,5],[208,3,208,5],[199,3,199,5],[200,3,200,5],[201,3,201,5],[202,3,202,5],[203,3,203,5],[214,3,214,5],[215,2,215,4],[216,3,216,5],[217,3,217,5],[218,3,218,5],[209,3,209,5],[210,3,210,5],[211,3,211,5],[212,3,212,5],[213,3,213,5],[224,3,224,5],[225,2,225,4],[226,3,226,4],[227,3,227,4],[228,3,228,4],[219,2,219,4],[220,2,220,4],[221,3,221,5],[222,3,222,5],[223,3,223,5],[234,3,234,5],[235,3,235,5],[236,3,236,5],[237,3,237,5],[238,2,238,4],[229,3,229,4],[230,3,230,4],[231,2,231,4],[232,3,232,5],[233,3,233,5],[244,3,244,4],[245,3,245,4],[246,3,246,4],[247,3,247,4],[248,3,248,4],[239,3,239,5],[240,3,240,5],[241,3,241,5],[242,3,242,5],[243,2,243,4],[254,3,254,5],[255,3,255,5],[256,2,256,4],[258,1,258,5],[249,2,249,4],[250,3,250,5],[251,3,251,5],[252,3,252,5],[253,3,253,5]]}
["_Оглавление_"]
[null,{"$f":"MID(CELL(\"filename\",A2),SEARCH(\"]\",CELL(\"filename\",A2))+1,31)","v":"Приложение №3"}]
[null,{"$f":"'Приложение № 2'!B3","v":"к Дополнительному соглашению № 5"}]
[null,{"$f":"_Оглавление_!A3","v":"от 31.05.2024"}]
[null,"к Тарифному соглашению"]
[null,"на оплату медицинской помощи "]
[null,"по ОМС на территории Томской области на 2024 год "]
[null,"от 05.02.2024"]
[]
[null,"Приложение № 31"]
[null,"к  Тарифному соглашению"]
[null,"на оплату медицинской помощи"]
[null,"по ОМС на территории Томской области на 2024 год"]
[null,"от 05.02.2024"]
[]
[null,"Коэффициенты сложности лечения пациента для оплаты медицинской помощи, оказанной в стационарных условиях и в условиях дневного стационара, по КСГ, в том числе лицам, застрахованным за пределами Томской области"]
[]
[null,null,"Случаи, для которых установлен КСЛП",null,null,"Коэффициент сложности лечения пациента"]
[null,1," предоставление спального места и питания законному представителю несовершеннолетних (детей до 4 лет, детей старше 4 лет при наличии медицинских показаний, детей-инвалидов в возрасте до 18 лет), за исключением случаев, к которым применяется КСЛП, предусмотренный пунктом 2 настоящего перечня",null,null,0.2]
[null,2," предоставление спального места и питания законному представителю несовершеннолетних (детей до 4 лет, детей старше 4 лет при наличии медицинских показаний, детей-инвалидов в возрасте до 18 лет), получающих медицинскую помощь по профилю «детская онкология» и (или) «гематология»",null,null,0.6]
[null,3,"оказание медицинской помощи пациенту в возрасте старше 75 лет в случае проведения консультации врача-гериатра, за исключением случаев госпитализации на геронтологические профильные койки",null,null,0.2]
[null,4,"развертывание индивидуального поста",null,null,0.2]
[null,5,"наличие у пациента тяжелой сопутствующей патологии, требующей оказания медицинской помощи в период госпитализации:                                                                                                                                                                       - сахарный диабет типа 1 и 2;\n- заболевания, включенные в Перечень редких (орфанных) заболеваний, размещенный на официальном сайте Министерства здравоохранения Российской Федерации ;\n- рассеянный склероз (G35);\n- хронический лимфоцитарный лейкоз (С91.1);\n- состояния после трансплантации органов и (или) тканей (Z94.0; Z94.1; Z94.4; Z94.8);\n- детский церебральный паралич (G80);\n- ВИЧ/СПИД, стадии 4Б и 4В, взрослые (B20 – B24);\n- перинатальный контакт по ВИЧ-инфекции, дети (Z20.6)",null,null,0.6]
[null,6,"проведение сочетанных хирургических вмешательств (уровень 1) :",null,null,0.05]
[null,null,"операция 1",null,"операция 2"]
[null,null,"A16.01.031","Устранение рубцовой деформации","A16.01.017.001","Удаление доброкачественных новообразований кожи методом электрокоагуляции"]
[null,null,"A16.01.031","Устранение рубцовой деформации","A16.01.017","Удаление доброкачественных новообразований кожи"]
[null,null,"A16.01.013","Удаление сосудистой мальформации","A16.01.017","Удаление доброкачественных новообразований кожи"]
[null,null,"A16.01.013","Удаление сосудистой мальформации","A16.01.017.001","Удаление доброкачественных новообразований кожи методом электрокоагуляции"]
[null,null,"A16.18.027","Эндоскопическое электрохирургическое удаление новообразования толстой кишки","A16.19.017","Удаление полипа анального канала и прямой кишки"]
[null,null,"A16.18.027","Эндоскопическое электрохирургическое удаление новообразования толстой кишки","A16.19.003.001","Иссечение анальной трещины"]
[null,null,"A16.26.093","Факоэмульсификация без интраокулярной линзы. Факофрагментация, факоаспирация","A16.26.073.003","Проникающая склерэктомия"]
[null,null,"A16.26.093.002","Факоэмульсификация с имплантацией интраокулярной линзы","A16.26.070","Модифицированная синустрабекулэктомия"]
[null,null,"A16.26.093.001","Факоэмульсификация с использованием фемтосекундного лазера","A16.26.070","Модифицированная синустрабекулэктомия"]
[null,null,"A16.26.049.008","Сквозная кератопластика","A16.26.092","Экстракапсулярная экстракция катаракты с имплантацией ИОЛ"]
[null,null,"A16.07.061.001","Хейлоринопластика (устранение врожденной расщелины верхней губы)","A16.07.042","Пластика уздечки верхней губы"]
[null,null,"A16.07.061.001","Хейлоринопластика (устранение врожденной расщелины верхней губы)","A16.07.044","Пластика уздечки языка"]
[null,null,"A16.07.066","Уранопластика (устранение врожденной расщелины твердого и мягкого неба)","A16.07.042","Пластика уздечки верхней губы"]
[null,null,"A16.07.066","Уранопластика (устранение врожденной расщелины твердого и мягкого неба)","A16.07.044","Пластика уздечки языка"]
[null,null,"A16.30.014","Экстирпация срединных кист и свищей шеи","A16.01.018","Удаление доброкачественных новообразований подкожно-жировой клетчатки"]
[null,null,"A16.30.014","Экстирпация срединных кист и свищей шеи","A16.01.017","Удаление доброкачественных новообразований кожи"]
[null,null,"A16.30.015","Экстирпация боковых свищей шеи","A16.01.018","Удаление доброкачественных новообразований подкожно-жировой клетчатки"]
[null,null,"A16.30.015","Экстирпация боковых свищей шеи","A16.01.017","Удаление доброкачественных новообразований кожи"]
[null,null,"A16.07.016","Цистотомия или цистэктомия","A16.01.018","Удаление доброкачественных новообразований подкожно-жировой клетчатки"]
[null,null,"A16.01.031","Устранение рубцовой деформации","A16.01.018","Удаление доброкачественных новообразований подкожно-жировой клетчатки"]
[null,null,"A16.01.013","Удаление сосудистой мальформации","A16.01.018","Удаление доброкачественных новообразований подкожно-жировой клетчатки"]
[null,null,"A16.26.106","Удаление инородного тела, новообразования из глазницы","A16.26.111","Пластика века (блефаропластика) без и с пересадкой тканей"]
[null,null,"A16.07.016","Цистотомия или цистэктомия","A16.07.042","Пластика уздечки верхней губы"]
[null,null,"A16.07.016","Цистотомия или цистэктомия","A16.07.043","Пластика уздечки нижней губы"]
[null,7,"проведение сочетанных хирургических вмешательств (уровень 2):",null,null,0.47]
[null,null,"Операция 1",null,"Операция 2"]
[null,null,"A16.12.009","Тромбэндартерэктомия","A06.12.015","Ангиография бедренной артерии прямая, обеих сторон"]
[null,null,"A16.12.009.001","Тромбоэктомия из сосудистого протеза","A06.12.015","Ангиография бедренной артерии прямая, обеих сторон"]
[null,null,"A16.12.038.006","Бедренно - подколенное шунтирование","A06.12.015","Ангиография бедренной артерии прямая, обеих сторон"]
[null,null,"A16.12.008.001","Эндартерэктомия каротидная","A06.12.005","Ангиография внутренней сонной артерии"]
[null,null,"A16.12.038.008","Сонно-подключичное шунтирование","A06.12.007","Ангиография артерий верхней конечности прямая"]
[null,null,"A16.12.006.001","Удаление поверхностных вен нижней конечности","A16.30.001","Оперативное лечение пахово-бедренной грыжи"]
[null,null,"A16.12.006.001","Удаление поверхностных вен нижней конечности","A16.30.001.001","Оперативное лечение пахово-бедренной грыжи с использованием видеоэндоскопических технологий"]
[null,null,"A16.12.006.001","Удаление поверхностных вен нижней конечности","A16.30.001.002","Оперативное лечение пахово-бедренной грыжи с использованием сетчатых имплантов"]
[null,null,"A16.14.009","Холецистэктомия","A16.30.002","Оперативное лечение пупочной грыжи"]
[null,null,"A16.14.009","Холецистэктомия","A16.30.003","Оперативное лечение околопупочной грыжи"]
[null,null,"A16.14.009","Холецистэктомия","A16.30.004","Оперативное лечение грыжи передней брюшной стенки"]
[null,null,"A16.14.009.002","Холецистэктомия лапароскопическая","A16.30.002","Оперативное лечение пупочной грыжи"]
[null,null,"A16.14.009.002","Холецистэктомия лапароскопическая","A16.30.003","Оперативное лечение околопупочной грыжи"]
[null,null,"A16.14.009.002","Холецистэктомия лапароскопическая","A16.30.004","Оперативное лечение грыжи передней брюшной стенки"]
[null,null,"A16.14.009.001","Холецистэктомия малоинвазивная","A16.30.002","Оперативное лечение пупочной грыжи"]
[null,null,"A16.14.009.001","Холецистэктомия малоинвазивная","A16.30.003","Оперативное лечение околопупочной грыжи"]
[null,null,"A16.14.009.001","Холецистэктомия малоинвазивная","A16.30.004","Оперативное лечение грыжи передней брюшной стенки"]
[null,null,"A16.09.026.004","Пластика диафрагмы с использованием видеоэндоскопических технологий","A16.16.006.001","Бужирование пищевода эндоскопическое"]
[null,null,"A16.22.001","Гемитиреоидэктомия","A16.14.009.002","Холецистэктомия лапароскопическая"]
[null,null,"A16.22.001","Гемитиреоидэктомия","A16.30.001","Оперативное лечение пахово-бедренной грыжи"]
[null,null,"A16.22.001","Гемитиреоидэктомия","A16.30.001.001","Оперативное лечение пахово-бедренной грыжи с использованием видеоэндоскопических технологий"]
[null,null,"A16.22.001","Гемитиреоидэктомия","A16.30.001.002","Оперативное лечение пахово-бедренной грыжи с использованием сетчатых имплантов"]
[null,null,"A16.22.001","Гемитиреоидэктомия","A16.30.002","Оперативное лечение пупочной грыжи"]
[null,null,"A16.22.001","Гемитиреоидэктомия","A16.30.002.001","Оперативное лечение пупочной грыжи с использованием видеоэндоскопических технологий"]
[null,null,"A16.22.001","Гемитиреоидэктомия","A16.30.004","Оперативное лечение грыжи передней брюшной стенки"]
[null,null,"A16.20.032","Резекция молочной железы","A16.20.004","Сальпингэктомия лапаротомическая"]
[null,null,"A16.20.032","Резекция молочной железы","A16.20.017","Удаление параовариальной кисты лапаротомическое"]
[null,null,"A16.20.032","Резекция молочной железы","A16.20.061","Резекция яичника лапаротомическая"]
[null,null,"A16.20.005","Кесарево сечение","A16.20.041","Стерилизация маточных труб лапаротомическая"]
[null,null,"A16.20.005","Кесарево сечение","A16.20.075","Перевязка маточных артерий"]
[null,null,"A16.20.063.001","Влагалищная экстирпация матки с придатками с использованием видеоэндоскопических технологий","A16.20.083","Кольпоперинеоррафия и леваторопластика"]
[null,null,"A16.16.033.001","Фундопликация лапароскопическая","A16.14.009.002","Холецистэктомия лапароскопическая"]
[null,null,"A16.18.027","Эндоскопическое электрохирургическое удаление новообразования толстой кишки","A16.19.013","Удаление геморроидальных узлов"]
[null,null,"A16.28.071.001","Иссечение кисты почки лапароскопическое","A16.20.001.001","Удаление кисты яичника с использованием видеоэндоскопических технологий"]
[null,null,"A16.21.002","Трансуретральная резекция простаты","A16.28.085","Трансуретральная эндоскопическая цистолитотрипсия"]
[null,null,"A16.26.111.001","Пластика верхних век без пересадки тканей чрескожным доступом","A16.26.041.001","Пластика конъюнктивальной полости с использованием свободного лоскута слизистой со щеки"]
[null,null,"A16.26.145","Пластика опорно­двигательной культи при анофтальме","A16.26.041.001","Пластика конъюнктивальной полости с использованием свободного лоскута слизистой со щеки"]
[null,null,"A16.19.013","Удаление геморроидальных узлов","A16.19.003.001","Иссечение анальной трещины"]
[null,null,"A16.26.093","Факоэмульсификация без интраокулярной линзы. Факофрагментация, факоаспирация ","A16.26.069","Трабекулотомия"]
[null,null,"A16.26.093","Факоэмульсификация без интраокулярной линзы. Факофрагментация, факоаспирация","A16.26.146","Реконструкция угла передней камеры глаза"]
[null,null,"A16.30.004.011","Оперативное лечение грыжи передней брюшной стенки с использованием сетчатых имплантов","A16.30.001.002","Оперативное лечение пахово-бедренной грыжи с использованием сетчатых имплантов"]
[null,null,"A16.30.004.011","Оперативное лечение грыжи передней брюшной стенки с использованием сетчатых имплантов","A16.30.001.001","Оперативное лечение пахово-бедренной грыжи с использованием видеоэндоскопических технологий"]
[null,null,"A16.30.002.001","Оперативное лечение пупочной грыжи с использованием видеоэндоскопических технологий","A16.30.001.002","Оперативное лечение пахово-бедренной грыжи с использованием сетчатых имплантов"]
[null,null,"A16.30.002.001","Оперативное лечение пупочной грыжи с использованием видеоэндоскопических технологий","A16.30.001.001","Оперативное лечение пахово-бедренной грыжи с использованием видеоэндоскопических технологий"]
[null,null,"A16.30.002","Оперативное лечение пупочной грыжи","A16.30.001","Оперативное лечение пахово-бедренной грыжи"]
[null,null,"A16.30.004","Оперативное лечение грыжи передней брюшной стенки","A16.30.001","Оперативное лечение пахово-бедренной грыжи"]
[null,null,"A16.08.013.001","Пластика носовой перегородки с использованием видеоэндоскопических технологий","A16.08.017.001","Гайморотомия с использованием видеоэндоскопических технологий"]
[null,null,"A16.26.093","Факоэмульсификация без интраокулярной линзы. Факофрагментация, факоаспирация","A16.26.115","Удаление силиконового масла (или иного высокомолекулярного соединения) из витреальной полости"]
[null,null,"A16.26.099","Эвисцерация глазного яблока","A16.26.041.001","Пластика конъюнктивальной полости с использованием свободного лоскута слизистой со щеки"]
[null,null,"A16.26.115","Удаление силиконового масла (или иного высокомолекулярного соединения) из витреальной полости","A16.26.094","Имплантация интраокулярной линзы"]
[null,null,"A16.12.019.001","Ревизия бедренных артерий","A16.12.028","Установка стента в сосуд"]
[null,null,"A16.12.019.001","Ревизия бедренных артерий","A16.12.026","Баллонная вазодилатация"]
[null,null,"A16.12.019.001","Ревизия бедренных артерий","А16.12.026.018","Баллонная ангиопластика подвздошной артерии"]
[null,null,"A16.14.009","Холецистэктомия","A16.30.002.001","Оперативное лечение пупочной грыжи с использованием видеоэндоскопических технологий"]
[null,null,"A16.14.009","Холецистэктомия","A16.30.002.002","Оперативное лечение пупочной грыжи с использованием сетчатых имплантов"]
[null,null,"A16.14.009","Холецистэктомия","A16.30.004.011","Оперативное лечение грыжи передней брюшной стенки с использованием сетчатых имплантов"]
[null,null,"A16.14.009.002","Холецистэктомия лапароскопическая","A16.30.002.001","Оперативное лечение пупочной грыжи с использованием видеоэндоскопических технологий"]
[null,null,"A16.14.009.002","Холецистэктомия лапароскопическая","A16.30.002.002","Оперативное лечение пупочной грыжи с использованием сетчатых имплантов"]
[null,null,"A16.14.009.002","Холецистэктомия лапароскопическая","A16.30.004.011","Оперативное лечение грыжи передней брюшной стенки с использованием сетчатых имплантов"]
[null,null,"A16.14.009.001","Холецистэктомия малоинвазивная","A16.30.002.001","Оперативное лечение пупочной грыжи с использованием видеоэндоскопических технологий"]
[null,null,"A16.14.009.001","Холецистэктомия малоинвазивная","A16.30.002.002","Оперативное лечение пупочной грыжи с использованием сетчатых имплантов"]
[null,null,"A16.14.009.001","Холецистэктомия малоинвазивная","A16.30.004.011","Оперативное лечение грыжи передней брюшной стенки с использованием сетчатых имплантов"]
[null,null,"A16.30.003","Оперативное лечение околопупочной грыжи","A16.30.001.002","Оперативное лечение пахово-бедренной грыжи с использованием сетчатых имплантов"]
[null,null,"A16.30.002","Оперативное лечение пупочной грыжи","A16.30.001.002","Оперативное лечение пахово-бедренной грыжи с использованием сетчатых имплантов"]
[null,null,"A16.30.004","Оперативное лечение грыжи передней брюшной стенки","A16.30.001.002","Оперативное лечение пахово-бедренной грыжи с использованием сетчатых имплантов"]
[null,null,"A16.30.002","Оперативное лечение пупочной грыжи","A16.16.033.001","Фундопликация лапароскопическая"]
[null,null,"A16.30.002","Оперативное лечение пупочной грыжи","A16.09.026.004","Пластика диафрагмы с использованием видеоэндоскопических технологий"]
[null,null,"A16.30.005.003","Устранение грыжи пищеводного отверстия диафрагмы с использованием видеоэндоскопических технологий","A16.16.046.002","Лапароскопическая диафрагмокрурорафия"]
[null,null,"A16.30.005.003","Устранение грыжи пищеводного отверстия диафрагмы с использованием видеоэндоскопических технологий","A16.16.033.001","Фундопликация лапароскопическая"]
[null,null,"A16.20.043","Мастэктомия","A16.20.011.002","Тотальная гистерэктомия (экстирпация матки) с придатками лапаротомическая"]
[null,null,"A16.20.005","Кесарево сечение","A16.20.035","Миомэктомия (энуклеация миоматозных узлов) лапаротомическая"]
[null,null,"A16.20.005","Кесарево сечение","A16.20.001","Удаление кисты яичника"]
[null,null,"A16.20.005","Кесарево сечение","A16.20.061","Резекция яичника лапаротомическая"]
[null,null,"A16.20.005","Кесарево сечение","A16.20.039","Метропластика лапаротомическая"]
[null,null,"A16.20.083","Кольпоперинеоррафия и леваторопластика","A16.20.042.001","Слинговые операции при недержании мочи"]
[null,null,"A16.14.009.002","Холецистэктомия лапароскопическая","A16.20.063.001","Влагалищная экстирпация матки с придатками с использованием видеоэндоскопических технологий"]
[null,null,"A16.18.009.001","Аппендэктомия с использованием видеоэндоскопических технологий","A16.20.061.001","Резекция яичника с использованием видеоэндоскопических технологий"]
[null,null,"A16.18.009","Аппендэктомия","A16.20.061","Резекция яичника лапаротомическая"]
[null,null,"A16.28.054","Трансуретральная уретеролитоэкстракция","A16.28.003.001","Лапароскопическая резекция почки"]
[null,null,"A16.26.093","Факоэмульсификация без интраокулярной линзы. Факофрагментация, факоаспирация","A16.26.049","Кератопластика (трансплантация роговицы)"]
[null,null,"A16.26.093","Факоэмульсификация без интраокулярной линзы. Факофрагментация, факоаспирация","A16.26.087","Замещение стекловидного тела"]
[null,null,"A16.26.098","Энуклеация глазного яблока","A16.26.041.001","Пластика конъюнктивальной полости с использованием свободного лоскута слизистой со щеки"]
[null,null,"A16.26.115","Удаление силиконового масла (или иного высокомолекулярного соединения) из витреальной полости","A16.26.093.002","Факоэмульсификация с имплантацией интраокулярной линзы"]
[null,null,"A16.26.094","Имплантация интраокулярной линзы","A16.26.086.001","Интравитреальное введение лекарственных препаратов"]
[null,8,"проведение сочетанных хирургических вмешательств  (уровень 3):",null,null,1.1599999999999999]
[null,null,"Операция 1",null,"Операция 2"]
[null,null,"A16.22.001","Гемитиреоидэктомия","A16.30.002.002","Оперативное лечение пупочной грыжи с использованием сетчатых имплантов"]
[null,null,"A16.18.016","Гемиколэктомия правосторонняя","A16.14.030","Резекция печени атипичная"]
[null,null,"A16.30.002.002","Оперативное лечение пупочной грыжи с использованием сетчатых имплантов","A16.30.001.002","Оперативное лечение пахово-бедренной грыжи с использованием сетчатых имплантов"]
[null,null,"A16.30.002.002","Оперативное лечение пупочной грыжи с использованием сетчатых имплантов","A16.30.001.001","Оперативное лечение пахово-бедренной грыжи с использованием видеоэндоскопических технологий"]
[null,null,"A16.26.093.002","Факоэмульсификация с имплантацией интраокулярной линзы","A16.26.049.005","Неавтоматизированная эндотекатопластика"]
[null,null,"A16.26.049.004","Послойная кератопластика","A16.26.093.002","Факоэмульсификация с имплантацией интраокулярной линзы"]
[null,null,"A16.26.089.002","Витреоэктомия задняя субтотальная закрытая","A16.26.093.002","Факоэмульсификация с имплантацией интраокулярной линзы"]
[null,9,"проведение сочетанных хирургических вмешательств  (уровень 4) :",null,null,2.0699999999999998]
[null,null,"Операция 1",null,"Операция 2"]
[null,null,"A16.09.026.004","Пластика диафрагмы с использованием видеоэндоскопических технологий","A16.16.032.002","Эндоскопическая кардиодилятация пищевода баллонным кардиодилятатором"]
[null,null,"A16.28.004.001","Лапароскопическая нефрэктомия","A16.21.002","Трансуретральная резекция простаты"]
[null,null,"A16.26.089.002","Витреоэктомия задняя субтотальная закрытая","A16.26.094","Имплантация интраокулярной линзы"]
[null,null,"A16.26.089.002","Витреоэктомия задняя субтотальная закрытая","A16.26.082","Круговое эпиклеральное пломбирование"]
[null,null,"A16.12.011.008","Пластика глубокой бедренной артерии","A16.12.026","Баллонная вазодилатация"]
[null,null,"A16.26.093.001","Факоэмульсификация с использованием фемтосекундного лазера","A16.26.049.005","Неавтоматизированная эндотекатопластика"]
[null,null,"A16.26.093.001","Факоэмульсификация с использованием фемтосекундного лазера","A16.26.093.002","Факоэмульсификация с имплантацией интраокулярной линзы"]
[null,null,"A16.30.005.003","Устранение грыжи пищеводного отверстия диафрагмы с использованием видеоэндоскопических технологий","A16.30.005.001","Пластика диафрагмы с использованием импланта"]
[null,null,"A16.20.014","Влагалищная тотальная гистерэктомия (экстирпация матки) с придатками","A16.20.042.001","Слинговые операции при недержании мочи"]
[null,null,"A16.20.063.001","Влагалищная экстирпация матки с придатками с использованием видеоэндоскопических технологий","A16.20.042.001","Слинговые операции при недержании мочи"]
[null,null,"A16.26.049.004","Послойная кератопластика","A16.26.093.001","Факоэмульсификация с использованием фемтосекундного лазера"]
[null,null,"A16.12.009.001","Тромбоэктомия из сосудистого протеза","А16.12.026.018","Баллонная ангиопластика подвздошной артерии"]
[null,null,"A16.12.038.006","Бедренно - подколенное шунтирование","А16.12.026.018","Баллонная ангиопластика подвздошной артерии"]
[null,null,"A16.12.009.001","Тромбоэктомия из сосудистого протеза","A16.12.028","Установка стента в сосуд"]
[null,null,"A16.12.011.008","Пластика глубокой бедренной артерии","A16.12.028","Установка стента в сосуд"]
[null,null,"A16.12.011.008","Пластика глубокой бедренной артерии","А16.12.026.018","Баллонная ангиопластика подвздошной артерии"]
[null,null,"A16.12.009","Тромбэндартерэктомия","A16.12.028","Установка стента в сосуд"]
[null,null,"A16.12.009","Тромбэндартерэктомия","А16.12.026.018","Баллонная ангиопластика подвздошной артерии"]
[null,null,"A16.12.038.006","Бедренно - подколенное шунтирование","A16.12.026.002","Баллонная ангиопластика подколенной артерии и магистральных артерий голени"]
[null,null,"A16.12.038.006","Бедренно - подколенное шунтирование","A16.12.026.004","Баллонная ангиопластика со стентированием подколенной артерии и магистральных артерий голени"]
[null,null,"A16.26.089.002","Витреоэктомия задняя субтотальная закрытая","A16.26.093.001","Факоэмульсификация с использованием фемтосекундного лазера"]
[null,10,"проведение однотипных операций на парных органах (уровень 1) :",null,null,0.05]
[null,null,"A16.26.007","Пластика слезных точек и слезных канальцев"]
[null,null,"A16.26.019","Устранение эпикантуса"]
[null,null,"A16.26.020","Устранение энтропиона или эктропиона"]
[null,null,"A16.26.021","Коррекция блефароптоза"]
[null,null,"A16.26.021.001","Устранение птоза"]
[null,null,"A16.26.022","Коррекция блефарохалязиса"]
[null,null,"A16.26.023","Устранение блефароспазма"]
[null,null,"A16.26.028","Миотомия, тенотомия глазной мышцы"]
[null,null,"A22.26.004","Лазерная корепраксия, дисцизия задней капсулы хрусталика"]
[null,null,"A22.26.005","Лазерная иридэктомия"]
[null,null,"A22.26.006","Лазергониотрабекулопунктура"]
[null,null,"A22.26.007","Лазерный трабекулоспазис"]
[null,null,"A22.26.009","Фокальная лазерная коагуляция глазного дна"]
[null,null,"A22.26.010","Панретинальная лазерная коагуляция "]
[null,null,"A22.26.019","Лазерная гониодесцеметопунктура"]
[null,null,"A22.26.023","Лазерная трабекулопластика"]
[null,11,"проведение однотипных операций на парных органах (уровень 2):",null,null,0.47]
[null,null,"A16.03.033.002","Наложение наружных фиксирующих устройств с использованием компрессионно-дистракционного аппарата внешней фиксации"]
[null,null,"A16.12.006","Разрез, иссечение и закрытие вен нижней конечности"]
[null,null,"A16.12.006.002","Подапоневротическая перевязка анастомозов между поверхностными и глубокими венами голени"]
[null,null,"A16.12.012","Перевязка и обнажение варикозных вен"]
[null,null,"A16.26.075","Склеропластика "]
[null,null,"A16.26.075.001","Склеропластика с использованием трансплантатов "]
[null,null,"A16.26.079","Реваскуляризация заднего сегмента глаза"]
[null,null,"A16.26.094","Имплантация интраокулярной линзы"]
[null,null,"A16.26.147","Ретросклеропломбирование"]
[null,12,"проведение однотипных операций на парных органах (уровень 3) :",null,null,1.1599999999999999]
[null,null,"A16.12.006.001","Удаление поверхностных вен нижней конечности"]
[null,null,"A16.12.006.003","Диссекция перфорантных вен с использованием видеоэндоскопических технологий"]
[null,null,"A16.26.093.002","Факоэмульсификация с имплантацией интраокулярной линзы"]
[null,13,"проведение однотипных операций на парных органах (уровень 4) :",null,null,2.0699999999999998]
[null,null,"A16.03.022.002","Остеосинтез титановой пластиной "]
[null,null,"A16.03.022.004","Интрамедуллярный стержневой остеосинтез"]
[null,null,"A16.03.022.005","Остеосинтез с использованием биодеградируемых материалов "]
[null,null,"A16.03.022.006","Интрамедуллярный блокируемый остеосинтез"]
[null,null,"A16.03.024.005","Реконструкция кости. Остеотомия кости с использованием комбинируемых методов фиксации "]
[null,null,"A16.03.024.007","Реконструкция кости. Корригирующая остеотомия при деформации стоп"]
[null,null,"A16.03.024.008","Реконструкция кости. Корригирующая остеотомия бедра"]
[null,null,"A16.03.024.009","Реконструкция кости. Корригирующая остеотомия голени"]
[null,null,"A16.03.024.010","Реконструкция кости при ложном суставе бедра"]
[null,null,"A16.04.014","Артропластика стопы и пальцев ноги"]
[null,null,"A16.12.008.001","Эндартерэктомия каротидная "]
[null,null,"A16.12.008.002","Эндартерэктомия каротидная с пластикой"]
[null,null,"A16.20.043.003","Мастэктомия радикальная с односторонней пластикой молочной железы с применением микрохирургической техники"]
[null,null,"A16.20.043.004","Мастэктомия расширенная модифицированная с пластическим закрытием дефекта грудной стенки"]
[null,null,"A16.20.047","Мастэктомия расширенная модифицированная с пластическим закрытием дефекта грудной стенки различными вариантами кожно-мышечных лоскутов"]
[null,null,"A16.20.048","Мастэктомия радикальная с реконструкцией TRAM-лоскутом"]
[null,14,"проведение однотипных операций на парных органах (уровень 5):",null,null,3.49]
[null,null,"A16.20.032.007","Резекция молочной железы субтотальная с маммопластикой и эндопротезированием"]
[null,null,"A16.20.103","Отсроченная реконструкция молочной железы с использованием эндопротеза"]
[null,null,"A16.20.049.001","Мастэктомия радикальная по Маддену с реконструкцией кожно-мышечным лоскутом и эндопротезированием"]
[null,15,"проведение 1 этапа медицинской реабилитации пациентов2",null,null,0.15]
[null,16,"проведение сопроводительной лекарственной терапии при злокачественных новообразованиях у взрослых в стационарных условиях в соответствии с клиническими рекомендациями (уровень 1)*",null,null,0.17]
[null,null,"Код схемы","Описание схемы"]
[null,null,"supt01","Филграстим 4 дня введения по 300 мкг"]
[null,null,"supt07","Микофенолата мофетил 30 дней введения по 500 мг 2 раза в день"]
[null,null,"supt08","Такролимус 30 дней введения по 0,1 мг/кг"]
[null,17,"проведение сопроводительной лекарственной терапии при злокачественных новообразованиях у взрослых в стационарных условиях в соответствии с клиническими рекомендациями (уровень 2)*",null,null,0.61]
[null,null,"Код схемы","Описание схемы",null,"Условия применения"]
[null,null,"supt02","Деносумаб 1 день введения 120 мг",null,"установленный клиренс креатинина <59 мл/мин на момент принятия решения о назначении препарата Деносумаб"]
[null,null,"supt03","Тоцилизумаб 1 день введения 4 мг/кг"]
[null,null,"supt04","Филграстим 8 дней введения по 300 мкг"]
[null,null,"supt06","Филграстим 10 дней введения по 300 мкг"]
[null,18,"проведение сопроводительной лекарственной терапии при злокачественных новообразованиях у взрослых в стационарных условиях в соответствии с клиническими рекомендациями (уровень 3)*",null,null,1.53]
[null,null,"Код схемы","Описание схемы"]
[null,null,"supt05","Эмпэгфилграстим 1 день введения 7,5 мг"]
[null,null,"supt09","Ведолизумаб 1 день введения 300 мг"]
[null,null,"supt10","Инфликсимаб 1 день введения 800 мг"]
[null,null,"supt11","Иммуноглобулин человека нормальный 2 дня введения по 1000 мг/кг"]
[null,null,"supt12","Иммуноглобулин антитимоцитарный 8-14 дней введения 10-20 мг/кг"]
[null,19,"проведение сопроводительной лекарственной терапии при злокачественных новообразованиях у взрослых в условиях дневного стационара в соответствии с клиническими рекомендациями (уровень 1)*",null,null,0.28999999999999998]
[null,null,"Код схемы","Описание схемы"]
[null,null,"supt01","Филграстим 4 дня введения по 300 мкг"]
[null,null,"supt07","Микофенолата мофетил 30 дней введения по 500 мг 2 раза в день"]
[null,null,"supt08","Такролимус 30 дней введения по 0,1 мг/кг"]
[null,20,"проведение сопроводительной лекарственной терапии при злокачественных новообразованиях у взрослых в условиях дневного стационара в соответствии с клиническими рекомендациями (уровень 2)*",null,null,1.1200000000000001]
[null,null,"Код схемы","Описание схемы",null,"Условия применения"]
[null,null,"supt02","Деносумаб 1 день введения 120 мг",null,"установленный клиренс креатинина <59 мл/мин на момент принятия решения о назначении препарата Деносумаб"]
[null,null,"supt03","Тоцилизумаб 1 день введения 4 мг/кг"]
[null,null,"supt04","Филграстим 8 дней введения по 300 мкг"]
[null,null,"supt06","Филграстим 10 дней введения по 300 мкг"]
[null,21,"проведение сопроводительной лекарственной терапии при злокачественных новообразованиях у взрослых в условиях дневного стационара в соответствии с клиническими рекомендациями (уровень 3)*",null,null,2.67]
[null,null,"Код схемы","Описание схемы"]
[null,null,"supt05","Эмпэгфилграстим 1 день введения 7,5 мг"]
[null,null,"supt09","Ведолизумаб 1 день введения 300 мг"]
[null,null,"supt10","Инфликсимаб 1 день введения 800 мг"]
[null,null,"supt11","Иммуноглобулин человека нормальный 2 дня введения по 1000 мг/кг"]
[null,null,"supt12","Иммуноглобулин антитимоцитарный 8-14 дней введения 10-20 мг/кг"]
[null,22,"проведение тестирования на выявление респираторных вирусных заболеваний (гриппа, новой коронавирусной инфекции COVID-19) в период госпитализации1",null,null,0.05]
[]
[null,"1 - не может применяться при оплате случаев лечения, оплачиваемых по КСГ st12.012 «Грипп, вирус гриппа идентифицирован» и КСГ st12.015-st12.019, используемых для оплаты случаев лечения новой коронавирусной инфекции COVID-19                                                                                                                                                                                                                                                                                                                                   \n2 – при проведении реабилитационных мероприятий при нахождении пациента на реанимационной койке и/или койке интенсивной терапии, начавшихся не позднее 48 часов от поступления в отделение реанимации или на койку интенсивной терапии с общей длительностью реабилитационных мероприятий не менее 5 суток, включая период после перевода на профильные койки по окончании реанимационных мероприятий, при обязательной продолжительности реабилитационных мероприятий не менее одного часа в сутки (при условии организации отделения ранней медицинской реабилитации на не менее чем 12 коек отделения, оказывающего медицинскую помощь по профилю «анестезиология и реанимация», и его укомплектования в соответствии с порядком оказания медицинской помощи по медицинской реабилитации)\n* – стоимость КСЛП «проведение сопроводительной лекарственной терапии при злокачественных новообразованиях у взрослых в соответствии с клиническими рекомендациями» в стационарных условиях и в условиях дневного стационара определяется без учета коэффициента дифференциации субъекта Российской Федерации. КСЛП в случае проведения сопроводительной лекарственной терапии при злокачественных новообразованиях у взрослых может быть применен в случае, если проведение сопроводительной терапии предусмотрено соответствующими клиническими рекомендациями, в рамках госпитализаций в стационарных условиях по КСГ st19.084-st19.089, st19.094-st19.102, st19.144-st19.162; в условиях дневного стационара по КСГ ds19.058-ds19.062, ds19.067-ds19.078, ds19.116-ds19.134. При использовании схем лекарственной терапии, предусматривающих применение лекарственных препаратов филграстим, деносумаб, эмпэгфилграстим, КСЛП «Проведение сопроводительной лекарственной терапии при злокачественных новообразованиях у взрослых» не применяется. \n\n"]

{"sheet":"Приложение № 4","index":4,"n_rows":27,"n_cols":16,"rows_kept":27,"cut":false,"hidden":false,"merged":[[15,1,15,15],[17,1,17,15]]}
[]
[null,{"$f":"MID(CELL(\"filename\",A2),SEARCH(\"]\",CELL(\"filename\",A2))+1,31)","v":"Приложение № 4"}]
[null,"к Дополнительному соглашению № 5"]
[null,"от 31.05.2024"]
[null,"к Тарифному соглашению"]
[null,"на оплату медицинской помощи "]
[null,"по ОМС на территории Томской области на 2024 год "]
[null,"от 05.02.2024"]
[]
[null,"Приложение № 40"]
[null,"к  Тарифному соглашению"]
[null,"на оплату медицинской помощи"]
[null,"по ОМС на территории Томской области на 2024 год"]
[null,"от 05.02.2024"]
[]
[null,"Тарифы на оплату медицинской помощи по подушевому нормативу финансирования на прикрепившихся к медицинской организации лиц, включая оплату по всем видам и условиям предоставляемой медицинской помощи, с учетом показателей результативности деятельности медицинской организации (включая показатели объема медицинской помощи)"]
[]
[null,"Тарифы на оплату медицинской помощи по подушевому нормативу финансирования на прикрепившихся к медицинской организации лиц, включая оплату по всем видам и условиям предоставляемой медицинской помощи, с учетом показателей результативности деятельности медицинской организации (включая показатели объема медицинской помощи), с 01.06.2024"]
[]
[null,"Код МО","Наименование МО"," Среднемесячное количество застрахованных лиц, прикрепленных к медицинской организации,  на 01.05.2024","Базовый подушевой норматив  на одно застрахованное прикрепившееся лицо (руб. в месяц)  ","Коэффициент  половозрастного состава ","Коэффициент  уровня расходов медицинских организаций","Коэффициент достижения целевых показателей уровня заработной платы медиицнских работников, предусмотренного \"Дорожными картами\" развития здравоохранения в ТО","Коэффициент дифференциации на прикрепившихся к медицинской организации лиц с учетом  наличия подразделений, расположенных  в сельской местности, отдаленных территориях, поселках городского типа и малых городах с численностью населения до 50 тысяч человек и расходов на их содержание и на оплату труда персонала","Диапазон численности прикрепленного населения к медицинским организациям, расположенных в сельской местности, отдаленных территориях, поселках городского типа и малых городах с численностью населения до 50 тысяч человек","Коэффициент дифференциации по территориям оказания медицинской организации","Месячный дифференцированный подушевой норматив финансирования МО на одно застрахованное прикрепившееся лицо, руб. в месяц ","Месячный дифференцированный подушевой норматив финансирования МО на медицинскую помощь, оказываемую в стационарных условиях, на одно застрахованное прикрепившееся лицо, руб. в месяц              ","Месячный дифференцированный подушевой норматив финансирования МО на медицинскую помощь, оказываемую в условиях дневного стационара, на одно застрахованное прикрепившееся лицо, руб. в месяц              ","Месячный дифференцированный подушевой норматив финансирования МО , на одно застрахованное прикрепившееся лицо, включая оплату медицинской помощи по всем видам и условиям руб. в месяц                    ","Месячный дифференцированный подушевой норматив финансирования поликлиники на одно застрахованное прикрепившееся лицо на выплаты за достижение целевых значений показателей результативности деятельности, руб. в месяц            "]
[null,61,"ОГАУЗ \"Александровская РБ\"",{"$f":"VLOOKUP($B21,'[9]Неполный_уменьш. база (2)'!$A$5:$X$43,3,0)","v":0},227.7,{"$f":"VLOOKUP($B21,'[9]Неполный_уменьш. база (2)'!$A$5:$X$43,21,0)","v":1.0757624213099719},1,{"$f":"VLOOKUP($B21,'[9]Неполный_уменьш. база (2)'!$A$5:$X$43,22,0)","v":1.5890299999999999},1.113,"до 20,0 тыс. человек",1.8149999999999999,{"$f":"ROUND(E21*F21*G21*H21*I21*K21,2)","v":786.29},901.48,102.26,{"$f":"L21+M21+N21","v":1790.03},{"$f":"ROUND(L21*1/99,2)","v":7.94}]
[null,63,"ОГБУЗ \"Бакчарская РБ\"",{"$f":"VLOOKUP($B22,'[9]Неполный_уменьш. база (2)'!$A$5:$X$43,3,0)","v":0},227.7,{"$f":"VLOOKUP($B22,'[9]Неполный_уменьш. база (2)'!$A$5:$X$43,21,0)","v":1.0831447346684975},1,{"$f":"VLOOKUP($B22,'[9]Неполный_уменьш. база (2)'!$A$5:$X$43,22,0)","v":1.8305199999999999},1.113,"до 20,0 тыс. человек",1.665,{"$f":"ROUND(E22*F22*G22*H22*I22*K22,2)","v":836.63},911.78,99.59,{"$f":"L22+M22+N22","v":1847.9999999999998},{"$f":"ROUND(L22*1/99,2)","v":8.4499999999999993}]
[null,65,"ОГБУЗ \"Верхнекетская РБ\"",{"$f":"VLOOKUP($B23,'[9]Неполный_уменьш. база (2)'!$A$5:$X$43,3,0)","v":0},227.7,{"$f":"VLOOKUP($B23,'[9]Неполный_уменьш. база (2)'!$A$5:$X$43,21,0)","v":1.0786765887852441},1,{"$f":"VLOOKUP($B23,'[9]Неполный_уменьш. база (2)'!$A$5:$X$43,22,0)","v":1.3871100000000001},1.113,"до 20,0 тыс. человек",1.7949999999999999,680.65,704.73,153.22999999999999,1538.6100000000001,6.88]
[null,69,"ОГБУЗ \"Каргасокская РБ\"",{"$f":"VLOOKUP($B24,'[9]Неполный_уменьш. база (2)'!$A$5:$X$43,3,0)","v":0},227.7,{"$f":"VLOOKUP($B24,'[9]Неполный_уменьш. база (2)'!$A$5:$X$43,21,0)","v":1.0844704269866998},1,{"$f":"VLOOKUP($B24,'[9]Неполный_уменьш. база (2)'!$A$5:$X$43,22,0)","v":1},1.113,"до 20,0 тыс. человек",1.831,503.23,533.08000000000004,177.49,1213.8,5.08]
[null,75,"ОГБУЗ \"Молчановская РБ\"",{"$f":"VLOOKUP($B25,'[9]Неполный_уменьш. база (2)'!$A$5:$X$43,3,0)","v":0},227.7,{"$f":"VLOOKUP($B25,'[9]Неполный_уменьш. база (2)'!$A$5:$X$43,21,0)","v":1.1017932812854996},1,{"$f":"VLOOKUP($B25,'[9]Неполный_уменьш. база (2)'!$A$5:$X$43,22,0)","v":1.2678100000000001},1.113,"до 20,0 тыс. человек",1.637,579.51,649.57000000000005,215.67,1444.75,5.85]
[null,115,"ОГАУЗ \"Стрежевская ГБ\"",{"$f":"VLOOKUP($B26,'[9]Неполный_уменьш. база (2)'!$A$5:$X$43,3,0)","v":0},227.7,{"$f":"VLOOKUP($B26,'[9]Неполный_уменьш. база (2)'!$A$5:$X$43,21,0)","v":1.0544717344746912},1,{"$f":"VLOOKUP($B26,'[9]Неполный_уменьш. база (2)'!$A$5:$X$43,22,0)","v":1.26004},1.04,"свыше 20,0 тыс. человек",1.7649999999999999,555.34,822.19,121.63,1499.1600000000003,5.61]
[null,81,"ОГБУЗ \"Тегульдетская РБ\"",{"$f":"VLOOKUP($B27,'[9]Неполный_уменьш. база (2)'!$A$5:$X$43,3,0)","v":0},227.7,{"$f":"VLOOKUP($B27,'[9]Неполный_уменьш. база (2)'!$A$5:$X$43,21,0)","v":1.0899044692986275},1,{"$f":"VLOOKUP($B27,'[9]Неполный_уменьш. база (2)'!$A$5:$X$43,22,0)","v":1.29827},1.113,"до 20,0 тыс. человек",1.6439999999999999,{"$f":"ROUND(E27*F27*G27*H27*I27*K27,2)","v":589.54},872.37,140.18,1602.09,5.95]

{"sheet":"Приложение № 5","index":5,"n_rows":110,"n_cols":25,"rows_kept":110,"cut":false,"hidden":false,"merged":[[44,3,44,24],[45,3,45,13],[45,14,45,24],[20,1,22,1],[20,2,22,2],[20,3,20,24],[21,3,21,13],[21,14,21,24],[23,1,26,1],[29,1,32,1],[33,1,34,1],[35,1,39,1],[44,1,46,1],[44,2,46,2],[70,11,71,11],[47,1,50,1],[53,1,56,1],[57,1,58,1],[59,1,63,1],[65,1,66,24],[70,1,72,1],[70,2,72,2],[70,3,71,3],[70,4,71,4],[70,5,71,5],[70,6,71,6],[70,7,71,7],[70,8,71,8],[70,9,71,9],[70,10,71,10],[70,18,71,18],[70,19,71,19],[70,20,71,20],[70,12,71,12],[70,13,71,13],[70,14,71,14],[70,15,71,15],[70,16,71,16],[70,17,71,17]]}
["Оглавнление"]
[null,{"$f":"MID(CELL(\"filename\",A2),SEARCH(\"]\",CELL(\"filename\",A2))+1,31)","v":"Приложение № 5"}]
[null,"к Дополнительному соглашению № 5"]
[null,{"$f":"_Оглавление_!A3","v":"от 31.05.2024"}]
[null,"к Тарифному соглашению"]
[null,"на оплату медицинской помощи "]
[null,"по ОМС на территории Томской области на 2024 год "]
[null,"от 05.02.2024"]
[]
[null,"Приложение № 41"]
[null,"к  Тарифному соглашению"]
[null,"на оплату медицинской помощи"]
[null,"по ОМС на территории Томской области на 2024 год"]
[null,"от 05.02.2024"]
[]
[null,"Тарифы на оплату первого и второго этапа диспансеризации ветеранов боевых действий - участников специальной военной операции, с 01.05.2024 "]
[]
[]
[null,"Тарифы на оплату комплексного посещения в рамках первого этапа диспансеризации ветеранов боевых действий - участников специальной военной операции, с 01.05.2024"]
[]
[null,"№ группы","Наименование медицинской организации ","Тариф на комплексное посещение I этапа диспансеризации, (руб.)"]
[null,null,null,"МУЖЧИНЫ  Возраст (лет)",{"$nulls":10},"ЖЕНЩИНЫ  Возраст (лет)"]
[null,null,null,"21, 27, 33","18, 24, 30",39,"41,43,47,49,51, 53,57,59,61,63,77,79,81,83,85,87,89,91,93,95,97,99",36,55,"76,78,80,82,84,86,88,90,92,94,96,98","65,67,69,71,73,75","40,42,44,46,48,52,54,56,58,62,66,68,70,72,74","50,60,64",45,"21,27,33","18,24,30",39,"41,43,47,49,53,55,59,61,77,79,81,83,85,87,89,91,93,95,97,99","51,57,63",36,"76,78,80,82,84,86,88,90,92,94,96,98","65,67,69,71,73,75","40,44,46,50,52,56,58,62,64,66,68,70,72,74","42,48,54,60",45]
[null,1,"ОГАУЗ \"Шегарская РБ\"",1661.46,2073.25,2248.6799999999998,2543.87,2660.47,2821.39,2955.67,3383.55,3795.35,4072.9,4612.8,3040.31,3452.12,3627.54,3542.62,3922.72,4039.34,3954.42,4382.32,5311,5691.09,5714.14]
[null,null,"ОГАУЗ \"Кожевниковская РБ\"",1661.46,2073.25,2248.6799999999998,2543.87,2660.47,2821.39,2955.67,3383.55,3795.35,4072.9,4612.8,3040.31,3452.12,3627.54,3542.62,3922.72,4039.34,3954.42,4382.32,5311,5691.09,5714.14]
[null,null,"ОГБУЗ \"Первомайская РБ\"",1661.46,2073.25,2248.6799999999998,2543.87,2660.47,2821.39,2955.67,3383.55,3795.35,4072.9,4612.8,3040.31,3452.12,3627.54,3542.62,3922.72,4039.34,3954.42,4382.32,5311,5691.09,5714.14]
[null,null,"ОГБУЗ \"Зырянская РБ\"",1661.46,2073.25,2248.6799999999998,2543.87,2660.47,2821.39,2955.67,3383.55,3795.35,4072.9,4612.8,3040.31,3452.12,3627.54,3542.62,3922.72,4039.34,3954.42,4382.32,5311,5691.09,5714.14]
[null,2,"ОГБУЗ \"Медико-санитарная часть №2\"",1486.31,1854.71,2011.63,2275.6999999999998,2380.02,2523.9899999999998,2644.09,3026.88,3395.27,3643.56,4126.57,2719.83,3088.2,3245.15,3169.19,3509.22,3613.52,3537.57,3920.37,4751.1400000000003,5091.18,5111.79]
[null,3,"ОГБУЗ \"Асиновская РБ\"",1661.46,2073.25,2248.6799999999998,2543.87,2660.47,2821.39,2955.67,3383.55,3795.35,4072.9,4612.8,3040.31,3452.12,3627.54,3542.62,3922.72,4039.34,3954.42,4382.32,5311,5691.09,5714.14]
[null,4,"ОГАУЗ \"Кривошеинская РБ\"",1988.79,2481.6999999999998,2691.69,3045.03,3184.6,3377.24,3537.95,4050.16,4543.07,4875.28,5521.58,3639.29,4132.2,4342.18,4240.55,4695.53,4835.1000000000004,4733.47,5245.67,6357.31,6812.28,6839.88]
[null,null,"ОГБУЗ \"Молчановская РБ\"",1988.79,2481.6999999999998,2691.69,3045.03,3184.6,3377.24,3537.95,4050.16,4543.07,4875.28,5521.58,3639.29,4132.2,4342.18,4240.55,4695.53,4835.1000000000004,4733.47,5245.67,6357.31,6812.28,6839.88]
[null,null,"ОГБУЗ \"Тегульдетская РБ\"",1988.79,2481.6999999999998,2691.69,3045.03,3184.6,3377.24,3537.95,4050.16,4543.07,4875.28,5521.58,3639.29,4132.2,4342.18,4240.55,4695.53,4835.1000000000004,4733.47,5245.67,6357.31,6812.28,6839.88]
[null,null,"ОГБУЗ \"Бакчарская РБ\"",1988.79,2481.6999999999998,2691.69,3045.03,3184.6,3377.24,3537.95,4050.16,4543.07,4875.28,5521.58,3639.29,4132.2,4342.18,4240.55,4695.53,4835.1000000000004,4733.47,5245.67,6357.31,6812.28,6839.88]
[null,5,"ОГАУЗ \"Колпашевская РБ\"",2044.34,2551.0300000000002,2766.88,3130.1,3273.56,3471.59,3636.8,4163.3,4670,5011.5,5675.84,3740.95,4247.6499999999996,4463.49,4359.0200000000004,4826.71,4970.18,4865.71,5392.23,6534.92,7002.62,7030.97]
[null,null,"ОГБУЗ \"Верхнекетская РБ\"",2044.34,2551.0300000000002,2766.88,3130.1,3273.56,3471.59,3636.8,4163.3,4670,5011.5,5675.84,3740.95,4247.6499999999996,4463.49,4359.0200000000004,4826.71,4970.18,4865.71,5392.23,6534.92,7002.62,7030.97]
[null,6,"ОГБУЗ \"Чаинская РБ\"",2128.88,2656.53,2881.3,3259.53,3408.94,3615.16,3787.19,4335.47,4863.1099999999997,5218.74,5910.57,3895.67,4423.32,4648.08,4539.29,5026.32,5175.72,5066.95,5615.23,6805.18,7292.21,7321.73]
[null,null,"ОГБУЗ \"Парабельская РБ\"",2128.88,2656.53,2881.3,3259.53,3408.94,3615.16,3787.19,4335.47,4863.1099999999997,5218.74,5910.57,3895.67,4423.32,4648.08,4539.29,5026.32,5175.72,5066.95,5615.23,6805.18,7292.21,7321.73]
[null,null,"ОГАУЗ \"Стрежевская ГБ\"",2128.88,2656.53,2881.3,3259.53,3408.94,3615.16,3787.19,4335.47,4863.1099999999997,5218.74,5910.57,3895.67,4423.32,4648.08,4539.29,5026.32,5175.72,5066.95,5615.23,6805.18,7292.21,7321.73]
[null,null,"ОГБУЗ \"Каргасокская РБ\"",2128.88,2656.53,2881.3,3259.53,3408.94,3615.16,3787.19,4335.47,4863.1099999999997,5218.74,5910.57,3895.67,4423.32,4648.08,4539.29,5026.32,5175.72,5066.95,5615.23,6805.18,7292.21,7321.73]
[null,null,"ОГАУЗ \"Александровская РБ\"",2128.88,2656.53,2881.3,3259.53,3408.94,3615.16,3787.19,4335.47,4863.1099999999997,5218.74,5910.57,3895.67,4423.32,4648.08,4539.29,5026.32,5175.72,5066.95,5615.23,6805.18,7292.21,7321.73]
[]
[]
[null,"Тарифы на оплату комплексного посещения в выходной день в рамках первого этапа диспансеризации ветеранов боевых действий - участников специальной военной операции, с 01.05.2024 "]
[]
[null,"№ группы","Наименование медицинской организации ","Тариф на комплексное посещение I этапа диспансеризации, (руб.)"]
[null,null,null,"МУЖЧИНЫ  Возраст (лет)",{"$nulls":10},"ЖЕНЩИНЫ  Возраст (лет)"]
[null,null,null,"21, 27, 33","18, 24, 30",39,"41,43,47,49,51, 53,57,59,61,63,77,79,81,83,85,87,89,91,93,95,97,99",36,55,"76,78,80,82,84,86,88,90,92,94,96,98","65,67,69,71,73,75","40,42,44,46,48,52,54,56,58,62,66,68,70,72,74","50,60,64",45,"21,27,33","18,24,30",39,"41,43,47,49,53,55,59,61,77,79,81,83,85,87,89,91,93,95,97,99","51,57,63",36,"76,78,80,82,84,86,88,90,92,94,96,98","65,67,69,71,73,75","40,44,46,50,52,56,58,62,64,66,68,70,72,74","42,48,54,60",45]
[null,1,"ОГАУЗ \"Шегарская РБ\"",2210.9299999999998,2654.6,2843.58,3161.61,3287.24,3460.63,3605.29,4066.27,4509.9399999999996,4808.96,5390.64,3696.48,4140.1400000000003,4329.1400000000003,4237.6499999999996,4647.17,4772.8,4681.3100000000004,5142.3100000000004,6142.84,6552.36,6577.18]
[null,null,"ОГАУЗ \"Кожевниковская РБ\"",2210.9299999999998,2654.6,2843.58,3161.61,3287.24,3460.63,3605.29,4066.27,4509.9399999999996,4808.96,5390.64,3696.48,4140.1400000000003,4329.1400000000003,4237.6499999999996,4647.17,4772.8,4681.3100000000004,5142.3100000000004,6142.84,6552.36,6577.18]
[null,null,"ОГБУЗ \"Первомайская РБ\"",2210.9299999999998,2654.6,2843.58,3161.61,3287.24,3460.63,3605.29,4066.27,4509.9399999999996,4808.96,5390.64,3696.48,4140.1400000000003,4329.1400000000003,4237.6499999999996,4647.17,4772.8,4681.3100000000004,5142.3100000000004,6142.84,6552.36,6577.18]
[null,null,"ОГБУЗ \"Зырянская РБ\"",2210.9299999999998,2654.6,2843.58,3161.61,3287.24,3460.63,3605.29,4066.27,4509.9399999999996,4808.96,5390.64,3696.48,4140.1400000000003,4329.1400000000003,4237.6499999999996,4647.17,4772.8,4681.3100000000004,5142.3100000000004,6142.84,6552.36,6577.18]
[null,2,"ОГБУЗ \"Медико-санитарная часть №2\"",1968.93,2365.8200000000002,2534.89,2819.41,2931.79,3086.89,3216.3,3628.71,4025.6,4293.09,4813.47,3297.89,3694.79,3863.85,3782.01,4148.3500000000004,4260.75,4178.91,4591.32,5486.4,5852.73,5874.94]
[null,3,"ОГБУЗ \"Асиновская РБ\"",2210.9299999999998,2654.6,2843.58,3161.61,3287.24,3460.63,3605.29,4066.27,4509.9399999999996,4808.96,5390.64,3696.48,4140.1400000000003,4329.1400000000003,4237.6499999999996,4647.17,4772.8,4681.3100000000004,5142.3100000000004,6142.84,6552.36,6577.18]
[null,4,"ОГАУЗ \"Кривошеинская РБ\"",2663.22,3194.27,3420.5,3801.19,3951.57,4159.1000000000004,4332.24,4884.08,5415.14,5773.06,6469.37,4441.43,4972.4799999999996,5198.71,5089.22,5579.39,5729.76,5620.27,6172.11,7369.76,7859.94,7889.65]
[null,null,"ОГБУЗ \"Молчановская РБ\"",2663.22,3194.27,3420.5,3801.19,3951.57,4159.1000000000004,4332.24,4884.08,5415.14,5773.06,6469.37,4441.43,4972.4799999999996,5198.71,5089.22,5579.39,5729.76,5620.27,6172.11,7369.76,7859.94,7889.65]
[null,null,"ОГБУЗ \"Тегульдетская РБ\"",2663.22,3194.27,3420.5,3801.19,3951.57,4159.1000000000004,4332.24,4884.08,5415.14,5773.06,6469.37,4441.43,4972.4799999999996,5198.71,5089.22,5579.39,5729.76,5620.27,6172.11,7369.76,7859.94,7889.65]
[null,null,"ОГБУЗ \"Бакчарская РБ\"",2663.22,3194.27,3420.5,3801.19,3951.57,4159.1000000000004,4332.24,4884.08,5415.14,5773.06,6469.37,4441.43,4972.4799999999996,5198.71,5089.22,5579.39,5729.76,5620.27,6172.11,7369.76,7859.94,7889.65]
[null,5,"ОГАУЗ \"Колпашевская РБ\"",2739.98,3285.86,3518.41,3909.73,4064.29,4277.66,4455.63,5022.8999999999996,5568.79,5936.7,6652.46,4567.8599999999997,5113.76,5346.3,5233.75,5737.64,5892.2,5779.65,6346.9,7578.01,8081.9,8112.44]
[null,null,"ОГБУЗ \"Верхнекетская РБ\"",2739.98,3285.86,3518.41,3909.73,4064.29,4277.66,4455.63,5022.8999999999996,5568.79,5936.7,6652.46,4567.8599999999997,5113.76,5346.3,5233.75,5737.64,5892.2,5779.65,6346.9,7578.01,8081.9,8112.44]
[null,6,"ОГБУЗ \"Чаинская РБ\"",2856.78,3425.25,3667.42,4074.93,4235.88,4458.08,4643.3999999999996,5234.1000000000004,5802.57,6185.72,6931.08,4760.28,5328.75,5570.91,5453.71,5978.43,6139.37,6022.17,6612.88,7894.91,8419.6200000000008,8451.43]
[null,null,"ОГБУЗ \"Парабельская РБ\"",2856.78,3425.25,3667.42,4074.93,4235.88,4458.08,4643.3999999999996,5234.1000000000004,5802.57,6185.72,6931.08,4760.28,5328.75,5570.91,5453.71,5978.43,6139.37,6022.17,6612.88,7894.91,8419.6200000000008,8451.43]
[null,null,"ОГАУЗ \"Стрежевская ГБ\"",2856.78,3425.25,3667.42,4074.93,4235.88,4458.08,4643.3999999999996,5234.1000000000004,5802.57,6185.72,6931.08,4760.28,5328.75,5570.91,5453.71,5978.43,6139.37,6022.17,6612.88,7894.91,8419.6200000000008,8451.43]
[null,null,"ОГБУЗ \"Каргасокская РБ\"",2856.78,3425.25,3667.42,4074.93,4235.88,4458.08,4643.3999999999996,5234.1000000000004,5802.57,6185.72,6931.08,4760.28,5328.75,5570.91,5453.71,5978.43,6139.37,6022.17,6612.88,7894.91,8419.6200000000008,8451.43]
[null,null,"ОГАУЗ \"Александровская РБ\"",2856.78,3425.25,3667.42,4074.93,4235.88,4458.08,4643.3999999999996,5234.1000000000004,5802.57,6185.72,6931.08,4760.28,5328.75,5570.91,5453.71,5978.43,6139.37,6022.17,6612.88,7894.91,8419.6200000000008,8451.43]
[]
[null,"Тарифы на оплату медицинских услуг II этапа диспансеризации ветеранов боевых действий - участников специальной военной операции, с 01.05.2024"]
[]
[]
[]
[]
[null,"Код услуги согласно отраслевому  классификатору ","Наименование услуги","Стоимость (без учета коэффициента дифференциации), руб.","ОГБУЗ \"Зырянская РБ\"","ОГАУЗ \"Кожевниковская РБ\"","ОГБУЗ \"Первомайская РБ\"","ОГАУЗ \"Шегарская РБ\"","ОГБУЗ \"МСЧ № 2\"","ОГБУЗ \"Асиновская РБ\" ","ОГАУЗ \"Кривошеинская РБ\" ","ОГБУЗ \"Молчановская РБ\"","ОГБУЗ \"Тегульдетская РБ\"","ОГБУЗ \"Бакчарская РБ\" ","ОГАУЗ \"Колпашевская РБ\"","ОГБУЗ \"Верхнекетская РБ\"","ОГАУЗ \"Стрежевская ГБ\"","ОГБУЗ \"Чаинская РБ\"","ОГБУЗ \"Парабельская РБ\"","ОГБУЗ \"Каргасокская РБ\"","ОГАУЗ \"Александровская РБ\""]
[]
[null,null,null,"коэффициент дифференциации",1.26,1.272,1.272,1.242,1.274,1.27,1.63,1.637,1.6439999999999999,1.665,1.7929999999999999,1.7949999999999999,1.7649999999999999,1.7769999999999999,1.794,1.831,1.8149999999999999]
[null,"А04.12.005.003","Дуплексное сканирование брахицефальных артерий ",541.20000000000005,681.91,688.41,688.41,672.17,689.49,687.32,882.16,885.94,889.73,901.1,970.37,971.45,955.22,961.71,970.91,990.94,982.28]
[null,"А03.18.001","Колоноскопия ",1362.68,1716.98,1733.33,1733.33,1692.45,1736.05,1730.6,2221.17,2230.71,2240.25,2268.86,2443.29,2446.0100000000002,2405.13,2421.48,2444.65,2495.0700000000002,2473.2600000000002]
[null,"A03.18.001 Н","Колоноскопия (диагностическая) под наркозом",3256.49,4103.18,4142.26,4142.26,4044.56,4148.7700000000004,4135.74,5308.08,5330.87,5353.67,5422.06,5838.89,5845.4,5747.7,5786.78,5842.14,5962.63,5910.53]
[null,"A03.19.002","Ректороманоскопия",1116.04,1406.21,1419.6,1419.6,1386.12,1421.83,1417.37,1819.15,1826.96,1834.77,1858.21,2001.06,2003.29,1969.81,1983.2,2002.18,2043.47,2025.61]
[null,"A03.16.001","Эзофагогастродуоденоскопия",911.26,1148.19,1159.1199999999999,1159.1199999999999,1131.78,1160.95,1157.3,1485.35,1491.73,1498.11,1517.25,1633.89,1635.71,1608.37,1619.31,1634.8,1668.52,1653.94]
[null,"A03.16.001 Н","Эзофагогастродуоденоскопия (с применением анестезиологического пособия)",3256.49,4103.18,4142.26,4142.26,4044.56,4148.7700000000004,4135.74,5308.08,5330.87,5353.67,5422.06,5838.89,5845.4,5747.7,5786.78,5842.14,5962.63,5910.53]
[null,"A06.09.007","Рентгенография легких ",173.32,218.38,220.46,220.46,215.26,220.81,220.12,282.51,283.72000000000003,284.94,288.58,310.76,311.11,305.91000000000003,307.99,310.94,317.35000000000002,314.58]
[null,"A06.09.008","Томография легких",274.42,345.77,349.06,349.06,340.83,349.61,348.51,447.3,449.23,451.15,456.91,492.04,492.58,484.35,487.64,492.31,502.46,498.07]
[null,"А12.09.001","Исследование неспровоцированных дыхательных объемов и потоков ",329.55,415.23,419.19,419.19,409.3,419.85,418.53,537.16999999999996,539.47,541.78,548.70000000000005,590.88,591.54,581.66,585.61,591.21,603.41,598.13]
[null,"А12.09.002.002","Исследование дыхательных объемов при провокации физической нагрузкой",549.83000000000004,692.79,699.38,699.38,682.89,700.48,698.28,896.22,900.07,903.92,915.47,985.85,986.94,970.45,977.05,986.4,1006.74,997.94]
[null,"A12.09.002.004","Исследование дыхательных объемов при медикаментозной провокации",431.29,543.42999999999995,548.6,548.6,535.66,549.46,547.74,703,706.02,709.04,718.1,773.3,774.17,761.23,766.4,773.73,789.69,782.79]
[null,"A09.05.083","Исследование уровня гликированного гемоглобина в крови",246,309.95999999999998,312.91000000000003,312.91000000000003,305.52999999999997,313.39999999999998,312.42,400.98,402.7,404.42,409.59,441.08,441.57,434.19,437.14,441.32,450.43,446.49]
[null,"A09.05.083.001","Исследование уровня гликированного гемоглобина в крови (без забора материала)",280.68,353.66,357.02,357.02,348.6,357.59,356.46,457.51,459.47,461.44,467.33,503.26,503.82,495.4,498.77,503.54,513.92999999999995,509.43]
[null,"А 03.016.03.001"," Общий (клинический) анализ крови на гематологическом анализаторе ",176.71,222.65,224.78,224.78,219.47,225.13,224.42,288.04000000000002,289.27,290.51,294.22000000000003,316.83999999999997,317.19,311.89,314.01,317.02,323.56,320.73]
[null,"В03.016.006","Общий (клинический) анализ мочи ",163.68,206.24,208.2,208.2,203.29,208.53,207.87,266.8,267.94,269.08999999999997,272.52999999999997,293.48,293.81,288.89999999999998,290.86,293.64,299.7,297.08]
[null,"В03.016.004"," Анализ крови биохимический общетерапевтический",323.77,407.95,411.84,411.84,402.12,412.48,411.19,527.75,530.01,532.28,539.08000000000004,580.52,581.16999999999996,571.45000000000005,575.34,580.84,592.82000000000005,587.64]
[null,"А09.19.001","Исследование кала на скрытую кровь ",32.72,41.23,41.62,41.62,40.64,41.69,41.55,53.33,53.56,53.79,54.48,58.67,58.73,57.75,58.14,58.7,59.91,59.39]
[null,"А09.20.003"," Определение Д-Димера  ",115.82,145.93,147.32,147.32,143.85,147.55000000000001,147.09,188.79,189.6,190.41,192.84,207.67,207.9,204.42,205.81,207.78,212.07,210.21]
[null,"А11.12.009","Взятие крови из периферической вены ",47.21,59.48,60.05,60.05,58.63,60.15,59.96,76.95,77.28,77.61,78.599999999999994,84.65,84.74,83.33,83.89,84.69,86.44,85.69]
[null,"В01.050.001"," Прием  (осмотр-консультация) первичный врача-травматолога ",212.84,268.18,270.73,270.73,264.35000000000002,271.16000000000003,270.31,346.93,348.42,349.91,354.38,381.62,382.05,375.66,378.22,381.83,389.71,386.3]
[null,"В01.057.001","Прием (осмотр-консультация) первичный  врача-хирурга ",206,259.56,262.02999999999997,262.02999999999997,255.85,262.44,261.62,335.78,337.22,338.66,342.99,369.36,369.77,363.59,366.06,369.56,377.19,373.89]
[null,"В01.028.001.006","Прием (осмотр, консультация) врача-оториноларинголога с использованием видеоэндоскопической техники ",1481.43,1866.6,1884.38,1884.38,1839.94,1887.34,1881.42,2414.73,2425.1,2435.4699999999998,2466.58,2656.2,2659.17,2614.7199999999998,2632.5,2657.69,2712.5,2688.8]
[null,"В01.023.001","Прием  первичный  осмотр-консультация  невролога  ",332.06,418.4,422.38,422.38,412.42,423.04,421.72,541.26,543.58000000000004,545.91,552.88,595.38,596.04999999999995,586.09,590.07000000000005,595.72,608,602.69000000000005]
[null,"В01.029.001"," Прием (осмотр, консультация) врача-офтальмолога первичный ",179.15,225.73,227.88,227.88,222.5,228.24,227.52,292.01,293.27,294.52,298.27999999999997,321.22000000000003,321.57,316.2,318.35000000000002,321.39999999999998,328.02,325.16000000000003]
[null,"А02.26.004","Проверка остроты зрения по таблице ",21.49,27.08,27.34,27.34,26.69,27.38,27.29,35.03,35.18,35.33,35.78,38.53,38.57,37.93,38.19,38.549999999999997,39.35,39]
[null,"А03.26.001"," Осмотр переднего отрезка глаза на щелевой лампе (биомикроскопия) ",63.4,79.88,80.64,80.64,78.739999999999995,80.77,80.52,103.34,103.79,104.23,105.56,113.68,113.8,111.9,112.66,113.74,116.09,115.07]
[null,"А02.26.020","Осмотр глазного дна с узкими зрачком ",12.9,16.25,16.41,16.41,16.02,16.43,16.38,21.03,21.12,21.21,21.48,23.13,23.16,22.77,22.92,23.14,23.62,23.41]
[null,"B01.008.001","Прием (осмотр, консультация) врача-дерматовенеролога ",243.58,306.91000000000003,309.83,309.83,302.52999999999997,310.32,309.35000000000002,397.04,398.74,400.45,405.56,436.74,437.23,429.92,432.84,436.98,445.99,442.1]
[null,"А04.14.001","Ультразвуковое исследование печени ",144.56,182.15,183.88,183.88,179.54,184.17,183.59,235.63,236.64,237.66,240.69,259.2,259.49,255.15,256.88,259.33999999999997,264.69,262.38]
[null,"А04.15.001","Ультразвуковое исследование поджелудочной железы ",169.07,213.03,215.06,215.06,209.98,215.4,214.72,275.58,276.77,277.95,281.5,303.14,303.48,298.41000000000003,300.44,303.31,309.57,306.86]
[null,"А04.14.002"," Ультразвуковое исследование желчного пузыря и протоков",144.56,182.15,183.88,183.88,179.54,184.17,183.59,235.63,236.64,237.66,240.69,259.2,259.49,255.15,256.88,259.33999999999997,264.69,262.38]
[null,"А04.28.002.001","Ультразвуковое исследование почек ",182.61,230.09,232.28,232.28,226.8,232.65,231.91,297.64999999999998,298.93,300.20999999999998,304.05,327.42,327.78,322.31,324.5,327.60000000000002,334.36,331.44]
[null,"А02.26.015","Бесконтактная тонометрия ",83.31,104.97,105.97,105.97,103.47,106.14,105.8,135.80000000000001,136.38,136.96,138.71,149.37,149.54,147.04,148.04,149.46,152.54,151.21]
[null,"В01.047.001"," Прием (осмотр, консультация) врача-терапевта первичный ",306.54000000000002,386.24,389.92,389.92,380.72,390.53,389.31,499.66,501.81,503.95,510.39,549.63,550.24,541.04,544.72,549.92999999999995,561.27,556.37]
[null,"B01.001.001","Прием (осмотр, консультация) врача-акушера-гинеколога ",385.02,485.13,489.75,489.75,478.19,490.52,488.98,627.58000000000004,630.28,632.97,641.05999999999995,690.34,691.11,679.56,684.18,690.73,704.97,698.81]
[null,"B01.053.001","Прием (осмотр, консультация) врача-уролога ",286.5,360.99,364.43,364.43,355.83,365,363.86,467,469,471.01,477.02,513.69000000000005,514.27,505.67,509.11,513.98,524.58000000000004,520]
[null,"B01.018.001","Прием (осмотр, консультация) врача-колопроктолога ",357.86,450.9,455.2,455.2,444.46,455.91,454.48,583.30999999999995,585.82000000000005,588.32000000000005,595.84,641.64,642.36,631.62,635.91999999999996,642,655.24,649.52]